{"text_format":"1","workbook":"xlsx","n_sheets":26,"sheets":["Val","Beräkningar","Sid 1","Analysinstrument","Ventilation 1","Ventilation 2","Ventilation 3","Ventilation 4","Ventilation 5","Ventilation 6","Ventilation 7","Ventilation 8","Ventilation 9","Ventilation 10","Ventilation 11","Ventilation 12","Utsläpp år 1","Utsläpp år 2","Utsläpp h 1","Utsläpp h 2","Utsläpp h 3","Utsläpp h 4","Utsläpp h 5","Bilaga","Protokoll 1","Protokoll 2"],"not_rendered":{"charts":0,"images":4,"macros":1,"external_links":0,"defined_names":0,"comments":2,"pivot_tables":0},"unopened":[],"bounds":{"document_bytes":16777216,"sheet_cells":100000,"rows_first":2000,"rows_last":500,"rows_between":2000,"halvings":0,"cell_chars":16384,"cell_head_chars":4096},"cells_cut":0,"cells_raw":0,"read":"whole","date_system":"1900"}

{"sheet":"Val","index":0,"n_rows":35,"n_cols":13,"rows_kept":35,"cut":false,"hidden":false,"merged":[]}
[]
[null,"Produktionsanläggning"]
[]
[null,"Välj anläggningstyp:"]
[null,"Samrötning"]
[]
[null,"Samtliga utsläppskällor på anläggningen ges en identifikation i listan. Börja med att välja \"Anläggningsdel\" i kolumn C."]
[null,"OBS Detta gäller även utsläppskällor med nollutsläpp, dvs där metan inte kunnat detekteras (sätt metanhalten till 0 i beräkningar och kommentera i respektive resultatflik)."]
[]
[null,"Beräkningsmetod","Anläggningsdel","Array","Utsläppsobjekt samrötning","Utsläppsobjekt reningsverk","Mätpunkt/lokal benämning/tag","HBK","Array","Anläggningstyp","Anläggningsdelar","Utsläppsobjekt samrötning","Utsläppsobjekt reningsverk"]
[null,"Analysinstrument",null,{"$f":"IF(C11<>\"\",1,0)","v":0},null,null,null,{"$f":"IF(C11=\"\",\"\",IF(C11=\"Rötresthantering\",\"Nej\",\"Ja\"))","v":""},{"$f":"IF(H11=\"Ja\",1,0)","v":0},"Samrötning","Mottagning/Förbehandling","Mottagning","Mottagning externslam"]
[null,"Ventilation 1",null,{"$f":"IF(C12<>\"\",1,0)","v":0},null,null,null,{"$f":"IF(C12=\"\",\"\",IF(C12=\"Rötresthantering\",\"Nej\",\"Ja\"))","v":""},{"$f":"IF(H12=\"Ja\",1,0)","v":0},"Reningsverk","Gashantering","Förbehandling","Gravitationsförtjockare, täckt"]
[null,"Ventilation 2",null,0,null,null,null,"",0,null,"Rötresthantering","Hygienisering","Gravitationsförtjockare, öppen"]
[null,"Ventilation 3",null,0,null,null,null,"",0,null,null,"Substratbufferttank","Mekanisk förtjockare"]
[null,"Ventilation 4",null,0,null,null,null,"",0,null,null,"Rötkammare","Rötkammare"]
[null,"Ventilation 5",null,0,null,null,null,"",0,null,null,"Efterrötkammare","Efterrötkammare"]
[null,"Ventilation 6",null,0,null,null,null,"",0,null,null,"Gasutrustningsrum","Gasutrustningsrum"]
[null,"Ventilation 7",null,0,null,null,null,"",0,null,null,"Gasklocka","Gasklocka"]
[null,"Ventilation 8",null,0,null,null,null,"",0,null,null,"Biogödsellager, öppet","Rötslambuffertlager, öppet"]
[null,"Ventilation 9",null,0,null,null,null,"",0,null,null,"Biogödsellager, täckt","Rötslambuffertlager, täckt"]
[null,"Ventilation 10",null,0,null,null,null,"",0,null,null,"Avvattning","Avvattning"]
[null,"Ventilation 11",null,0,null,null,null,"",0,null,null,"Lager avvattnad biogödsel","Torrslamlager, öppet"]
[null,"Ventilation 12",null,0,null,null,null,"",0,null,null,"Efterbehandling biogödsel","Torrslamlager, täckt"]
[null,"Utsläpp (Nm3/år) 1",null,0,null,null,null,"",0,null,null,"Analysinstrument","Analysinstrument"]
[null,"Utsläpp (Nm3/år) 2",null,0,null,null,null,"",0,null,null,"Övrigt","Övrigt"]
[null,"Utsläpp (Nm3/h) 1",null,0,null,null,null,"",0]
[null,"Utsläpp (Nm3/h) 2",null,0,null,null,null,"",0]
[null,"Utsläpp (Nm3/h) 3",null,0,null,null,null,"",0]
[null,"Utsläpp (Nm3/h) 4",null,0,null,null,null,"",0]
[null,"Utsläpp (Nm3/h) 5",null,0,null,null,null,"",0]
[]
[]
[]
[]
[null,"Utskrift"]

{"sheet":"Beräkningar","index":1,"n_rows":419,"n_cols":17,"rows_kept":419,"cut":false,"hidden":false,"merged":[[285,5,285,6],[309,4,309,6],[184,4,184,6],[185,5,185,6],[162,4,162,6],[209,4,209,6],[210,5,210,6],[234,4,234,6],[235,5,235,6],[161,4,161,6],[34,4,34,6],[35,5,35,6],[59,4,59,6],[60,5,60,6],[84,4,84,6],[36,4,36,6],[37,4,37,6],[61,4,61,6],[62,4,62,6],[85,5,85,6],[109,4,109,6],[110,5,110,6],[134,4,134,6],[86,4,86,6],[159,4,159,6],[312,4,312,6],[186,4,186,6],[187,4,187,6],[211,4,211,6],[212,4,212,6],[236,4,236,6],[237,4,237,6],[261,4,261,6],[262,4,262,6],[286,4,286,6],[287,4,287,6],[311,4,311,6],[310,5,310,6],[259,4,259,6],[260,5,260,6],[284,4,284,6],[160,5,160,6],[87,4,87,6],[111,4,111,6],[112,4,112,6],[136,4,136,6],[135,5,135,6],[137,4,137,6]]}
["indata och konstanter",null,null,null,"PRODUKTIONSANLÄGGNING",null,null,null,"vers. 3.1"]
["beräknade data"]
["slutresultat"]
[]
["PRODUKTIONSDATA",null,null,null,"RÅGAS"]
["Q (gasflöde)","Nm3/h"]
["CH4 (metanhalt)","vol-%"]
["Momentant metanflöde","Nm3 CH4/h",null,null,{"$f":"E6*E7/100","v":0}]
["Årsproduktion gas","Nm3/år"]
["Metanhalt årsmedel","vol-%"]
["Totalt genomflöde","Nm3 CH4/år",null,null,{"$f":"E9*E10/100","v":0}]
["Drifttimmar per år","h/år"]
[]
["FÖRLUSTER",null,null,null,null,null,"HBK",null,null,null,null,null,null,null,null,"Ventilation val","Metanhalt val"]
["Momentan förlust","Nm3 CH4/h",null,null,{"$f":"C25*Val!D11+C50*Val!D12+C75*Val!D13+C100*Val!D14+C125*Val!D15+C150*Val!D16+C175*Val!D17+C200*Val!D18+C225*Val!D19+C250*Val!D20+C275*Val!D21+C300*Val!D22+C325*Val!D23+E337*Val!D24+E349*Val!D25+C361*Val!D26+C373*Val!D27+C385*Val!D28+C397*Val!D29+C409*Val!D30","v":{"$error":"#DIV/0!"}},null,{"$f":"C25*Val!I11+C50*Val!I12+C75*Val!I13+C100*Val!I14+C125*Val!I15+C150*Val!I16+C175*Val!I17+C200*Val!I18+C225*Val!I19+C250*Val!I20+C275*Val!I21+C300*Val!I22+C325*Val!I23+E337*Val!I24+E349*Val!I25+C361*Val!I26+C373*Val!I27+C385*Val!I28+C397*Val!I29+C409*Val!I30","v":{"$error":"#DIV/0!"}},null,"Uppdatera formeln i E15 om fler utsläppspunkter läggs till manuellt",null,null,null,null,null,null,"Mätning av flöde","online"]
["Momentan förlust","%",null,null,{"$f":"E15/$E$8*100","v":{"$error":"#DIV/0!"}},null,{"$f":"G15/$E$8*100","v":{"$error":"#DIV/0!"}},null,null,null,null,null,null,null,null,"Fläktdata m3/h","påsprov"]
["Årlig förlust","Nm3 CH4/år",null,null,{"$f":"C29*Val!D11+E54*Val!D12+E79*Val!D13+E104*Val!D14+E129*Val!D15+E154*Val!D16+E179*Val!D17+E204*Val!D18+E229*Val!D19+E254*Val!D20+E279*Val!D21+E304*Val!D22+E329*Val!D23+E341*Val!D24+E353*Val!D25+E365*Val!D26+E377*Val!D27+E389*Val!D28+E401*Val!D29+E413*Val!D30","v":0},null,{"$f":"C29*Val!I11+E54*Val!I12+E79*Val!I13+E104*Val!I14+E129*Val!I15+E154*Val!I16+E179*Val!I17+E204*Val!I18+E229*Val!I19+E254*Val!I20+E279*Val!I21+E304*Val!I22+E329*Val!I23+E341*Val!I24+E353*Val!I25+E365*Val!I26+E377*Val!I27+E389*Val!I28+E401*Val!I29+E413*Val!I30","v":0},null,"Uppdatera formeln i E17 om fler utsläppspunkter läggs till manuellt",null,null,null,null,null,null,"Schablon 3000 Nm3/h"]
["Årlig förlust","%",null,null,{"$f":"E17/$E$11*100","v":{"$error":"#DIV/0!"}},null,{"$f":"G17/$E$11*100","v":{"$error":"#DIV/0!"}},null,null,null,null,null,null,null,null,"Schablon 6000 Nm3/h"]
[]
["ANALYSINSTRUMENT",{"$f":"Val!C11","v":0},null,{"$f":"Val!G11","v":0}]
["INDATA"]
["Qutsläpp Rågas","lpm (l/min)"]
["RESULTAT"]
["Qutsläpp","l/h",{"$f":"C22*60","v":0}]
["Momentant utsläpp","Nm3 CH4/h",{"$f":"$E$7/100*C22*60/1000","v":0}]
["Momentant metanflöde","Nm3 CH4/h",null,null,{"$f":"$E$8","v":0}]
["Momentan förlust","%",null,null,{"$f":"100*C25/$E$8","v":{"$error":"#DIV/0!"}}]
["ÅRSVÄRDEN"]
["Årligt utsläpp","Nm3 CH4/år",{"$f":"($E$10/100*C22*60/1000)*$E$12","v":0}]
["Årligt metanflöde","Nm3 CH4/år",null,null,{"$f":"$E$11","v":0}]
["Årlig förlust","%",null,null,{"$f":"100*C29/E30","v":{"$error":"#DIV/0!"}}]
[]
["VENTILATION 1",{"$f":"Val!C12","v":0},null,{"$f":"Val!G12","v":0}]
["INDATA"]
["CH4(utsläpp)","ppm",null,null,"online"]
["Tutsläpp","ºC",null,null,"tid (min):"]
["Differenstryck, pd","Pa",null,null,"Mätning av flöde"]
["Gashastighet","m/s"]
["Rör diameter","cm"]
["KONSTANTER"]
["putsläpp","kPa",101.3]
["Luft densitet","kg/Nm3",1.29]
["RESULTAT"]
["Luft densitet","kg/m3",{"$f":"C42*C41/101.3*273.15/(273.15+C36)","v":1.29}]
["Rör area","m2",{"$f":"(C39/100)^2*0.25*PI()","v":0}]
["Gashastighet","m/s",{"$f":"IF(AND(C37=\"\",C38=\"\"),0,IF(AND(C37<>\"\",C38<>\"\"),99999,IF(C37=\"\",C38,SQRT(2*C37/C44))))","v":0},null,{"$f":"IF(C46=99999,\"Ange Pa eller m/s!\",\"\")","v":""}]
["Qutsläpp","l/s",{"$f":"C45*C46*1000","v":0}]
["Qutsläpp","m3/h",{"$f":"IF(E37=\"Fläktdata m3/h\",E38,C47/1000*60*60)","v":0}]
["Qutsläpp","Nm3/h",{"$f":"IF(E37=\"Schablon 3000 Nm3/h\",3000,IF(E37=\"Schablon 6000 Nm3/h\",6000,C48*C41/101.3*273.15/(273.15+C36)))","v":0}]
["Momentant utsläpp","Nm3 CH4/h",{"$f":"C49*C35/1000000","v":0}]
["Momentant metanflöde","Nm3 CH4/h",null,null,{"$f":"$E$8","v":0}]
["Momentan förlust","%",null,null,{"$f":"100*C50/$E$8","v":{"$error":"#DIV/0!"}}]
["ÅRSVÄRDEN","Skalning:","h",null,null,null,null,{"$f":"_xlfn.SWITCH(C53,\"d\",\"Ange drifttid!\",\"s\",\"Ange kvot aktuell lagermängd/årsmängd [ton TS/ton TS] (kolumn E) samt uppehållstid [h] (kolumn G)\",\"\")","v":""}]
["Årligt utsläpp","Nm3 CH4/år",null,null,{"$f":"IF(C53=\"p\",E52/100*E55,IF(C53=\"h\",C50*$E$12,IF(C53=\"d\",C50*E53,IF(C53=\"s\",C50/E53*G53/2,0))))","v":0}]
["Årligt metanflöde","Nm3 CH4/år",null,null,{"$f":"$E$11","v":0}]
["Årlig förlust","%",null,null,{"$f":"100*E54/E55","v":{"$error":"#DIV/0!"}}]
[]
["VENTILATION 2",{"$f":"Val!C13","v":0},null,{"$f":"Val!G13","v":0}]
["INDATA"]
["CH4(utsläpp)","ppm",null,null,"online"]
["Tutsläpp","ºC",null,null,"tid (min):"]
["Differenstryck, pd","Pa",null,null,"Mätning av flöde"]
["Gashastighet","m/s"]
["Rör diameter","cm"]
["KONSTANTER"]
["putsläpp","kPa",101.3]
["Luft densitet","kg/Nm3",1.29]
["RESULTAT"]
["Luft densitet","kg/m3",{"$f":"C67*C66/101.3*273.15/(273.15+C61)","v":1.29}]
["Rör area","m2",{"$f":"(C64/100)^2*0.25*PI()","v":0}]
["Gashastighet","m/s",{"$f":"IF(AND(C62=\"\",C63=\"\"),0,IF(AND(C62<>\"\",C63<>\"\"),99999,IF(C62=\"\",C63,SQRT(2*C62/C69))))","v":0},null,{"$f":"IF(C71=99999,\"Ange Pa eller m/s!\",\"\")","v":""}]
["Qutsläpp","l/s",{"$f":"C70*C71*1000","v":0}]
["Qutsläpp","m3/h",{"$f":"IF(E62=\"Fläktdata m3/h\",E63,C72/1000*60*60)","v":0}]
["Qutsläpp","Nm3/h",{"$f":"IF(E62=\"Schablon 3000 Nm3/h\",3000,IF(E62=\"Schablon 6000 Nm3/h\",6000,C73*C66/101.3*273.15/(273.15+C61)))","v":0}]
["Momentant utsläpp","Nm3 CH4/h",{"$f":"C74*C60/1000000","v":0}]
["Momentant metanflöde","Nm3 CH4/h",null,null,{"$f":"$E$8","v":0}]
["Momentan förlust","%",null,null,{"$f":"100*C75/$E$8","v":{"$error":"#DIV/0!"}}]
["ÅRSVÄRDEN","Skalning:","h",null,null,null,null,{"$f":"_xlfn.SWITCH(C78,\"d\",\"Ange drifttid!\",\"s\",\"Ange kvot aktuell lagermängd/årsmängd [ton TS/ton TS] (kolumn E) samt uppehållstid [h] (kolumn G)\",\"\")","v":""}]
["Årligt utsläpp","Nm3 CH4/år",null,null,{"$f":"IF(C78=\"p\",E77/100*E80,IF(C78=\"h\",C75*$E$12,IF(C78=\"d\",C75*E78,IF(C78=\"s\",C75/E78*G78/2,0))))","v":0}]
["Årligt metanflöde","Nm3 CH4/år",null,null,{"$f":"$E$11","v":0}]
["Årlig förlust","%",null,null,{"$f":"100*E79/E80","v":{"$error":"#DIV/0!"}}]
[]
["VENTILATION 3",{"$f":"Val!C14","v":0},null,{"$f":"Val!G14","v":0}]
["INDATA"]
["CH4(utsläpp)","ppm",null,null,"online"]
["Tutsläpp","ºC",null,null,"tid (min):"]
["Differenstryck, pd","Pa",null,null,"Mätning av flöde"]
["Gashastighet","m/s"]
["Rör diameter","cm"]
["KONSTANTER"]
["putsläpp","kPa",101.3]
["Luft densitet","kg/Nm3",1.29]
["RESULTAT"]
["Luft densitet","kg/m3",{"$f":"C92*C91/101.3*273.15/(273.15+C86)","v":1.29}]
["Rör area","m2",{"$f":"(C89/100)^2*0.25*PI()","v":0}]
["Gashastighet","m/s",{"$f":"IF(AND(C87=\"\",C88=\"\"),0,IF(AND(C87<>\"\",C88<>\"\"),99999,IF(C87=\"\",C88,SQRT(2*C87/C94))))","v":0},null,{"$f":"IF(C96=99999,\"Ange Pa eller m/s!\",\"\")","v":""}]
["Qutsläpp","l/s",{"$f":"C95*C96*1000","v":0}]
["Qutsläpp","m3/h",{"$f":"IF(E87=\"Fläktdata m3/h\",E88,C97/1000*60*60)","v":0}]
["Qutsläpp","Nm3/h",{"$f":"IF(E87=\"Schablon 3000 Nm3/h\",3000,IF(E87=\"Schablon 6000 Nm3/h\",6000,C98*C91/101.3*273.15/(273.15+C86)))","v":0}]
["Momentant utsläpp","Nm3 CH4/h",{"$f":"C99*C85/1000000","v":0}]
["Momentant metanflöde","Nm3 CH4/h",null,null,{"$f":"$E$8","v":0}]
["Momentan förlust","%",null,null,{"$f":"100*C100/$E$8","v":{"$error":"#DIV/0!"}}]
["ÅRSVÄRDEN","Skalning:","h",null,null,null,null,{"$f":"_xlfn.SWITCH(C103,\"d\",\"Ange drifttid!\",\"s\",\"Ange kvot aktuell lagermängd/årsmängd [ton TS/ton TS] (kolumn E) samt uppehållstid [h] (kolumn G)\",\"\")","v":""}]
["Årligt utsläpp","Nm3 CH4/år",null,null,{"$f":"IF(C103=\"p\",E102/100*E105,IF(C103=\"h\",C100*$E$12,IF(C103=\"d\",C100*E103,IF(C103=\"s\",C100/E103*G103/2,0))))","v":0}]
["Årligt metanflöde","Nm3 CH4/år",null,null,{"$f":"$E$11","v":0}]
["Årlig förlust","%",null,null,{"$f":"100*E104/E105","v":{"$error":"#DIV/0!"}}]
[]
["VENTILATION 4",{"$f":"Val!C15","v":0},null,{"$f":"Val!G15","v":0}]
["INDATA"]
["CH4(utsläpp)","ppm",null,null,"online"]
["Tutsläpp","ºC",null,null,"tid (min):"]
["Differenstryck, pd","Pa",null,null,"Mätning av flöde"]
["Gashastighet","m/s"]
["Rör diameter","cm"]
["KONSTANTER"]
["putsläpp","kPa",101.3]
["Luft densitet","kg/Nm3",1.29]
["RESULTAT"]
["Luft densitet","kg/m3",{"$f":"C117*C116/101.3*273.15/(273.15+C111)","v":1.29}]
["Rör area","m2",{"$f":"(C114/100)^2*0.25*PI()","v":0}]
["Gashastighet","m/s",{"$f":"IF(AND(C112=\"\",C113=\"\"),0,IF(AND(C112<>\"\",C113<>\"\"),99999,IF(C112=\"\",C113,SQRT(2*C112/C119))))","v":0},null,{"$f":"IF(C121=99999,\"Ange Pa eller m/s!\",\"\")","v":""}]
["Qutsläpp","l/s",{"$f":"C120*C121*1000","v":0}]
["Qutsläpp","m3/h",{"$f":"IF(E112=\"Fläktdata m3/h\",E113,C122/1000*60*60)","v":0}]
["Qutsläpp","Nm3/h",{"$f":"IF(E112=\"Schablon 3000 Nm3/h\",3000,IF(E112=\"Schablon 6000 Nm3/h\",6000,C123*C116/101.3*273.15/(273.15+C111)))","v":0}]
["Momentant utsläpp","Nm3 CH4/h",{"$f":"C124*C110/1000000","v":0}]
["Momentant metanflöde","Nm3 CH4/h",null,null,{"$f":"$E$8","v":0}]
["Momentan förlust","%",null,null,{"$f":"100*C125/$E$8","v":{"$error":"#DIV/0!"}}]
["ÅRSVÄRDEN","Skalning:","h",null,null,null,null,{"$f":"_xlfn.SWITCH(C128,\"d\",\"Ange drifttid!\",\"s\",\"Ange kvot aktuell lagermängd/årsmängd [ton TS/ton TS] (kolumn E) samt uppehållstid [h] (kolumn G)\",\"\")","v":""}]
["Årligt utsläpp","Nm3 CH4/år",null,null,{"$f":"IF(C128=\"p\",E127/100*E130,IF(C128=\"h\",C125*$E$12,IF(C128=\"d\",C125*E128,IF(C128=\"s\",C125/E128*G128/2,0))))","v":0}]
["Årligt metanflöde","Nm3 CH4/år",null,null,{"$f":"$E$11","v":0}]
["Årlig förlust","%",null,null,{"$f":"100*E129/E130","v":{"$error":"#DIV/0!"}}]
[]
["VENTILATION 5",{"$f":"Val!C16","v":0},null,{"$f":"Val!G16","v":0}]
["INDATA"]
["CH4(utsläpp)","ppm",null,null,"online"]
["Tutsläpp","ºC",null,null,"tid (min):"]
["Differenstryck, pd","Pa",null,null,"Mätning av flöde"]
["Gashastighet","m/s"]
["Rör diameter","cm"]
["KONSTANTER"]
["putsläpp","kPa",101.3]
["Luft densitet","kg/Nm3",1.29]
["RESULTAT"]
["Luft densitet","kg/m3",{"$f":"C142*C141/101.3*273.15/(273.15+C136)","v":1.29}]
["Rör area","m2",{"$f":"(C139/100)^2*0.25*PI()","v":0}]
["Gashastighet","m/s",{"$f":"IF(AND(C137=\"\",C138=\"\"),0,IF(AND(C137<>\"\",C138<>\"\"),99999,IF(C137=\"\",C138,SQRT(2*C137/C144))))","v":0},null,{"$f":"IF(C146=99999,\"Ange Pa eller m/s!\",\"\")","v":""}]
["Qutsläpp","l/s",{"$f":"C145*C146*1000","v":0}]
["Qutsläpp","m3/h",{"$f":"IF(E137=\"Fläktdata m3/h\",E138,C147/1000*60*60)","v":0}]
["Qutsläpp","Nm3/h",{"$f":"IF(E137=\"Schablon 3000 Nm3/h\",3000,IF(E137=\"Schablon 6000 Nm3/h\",6000,C148*C141/101.3*273.15/(273.15+C136)))","v":0}]
["Momentant utsläpp","Nm3 CH4/h",{"$f":"C149*C135/1000000","v":0}]
["Momentant metanflöde","Nm3 CH4/h",null,null,{"$f":"$E$8","v":0}]
["Momentan förlust","%",null,null,{"$f":"100*C150/$E$8","v":{"$error":"#DIV/0!"}}]
["ÅRSVÄRDEN","Skalning:","h",null,null,null,null,{"$f":"_xlfn.SWITCH(C153,\"d\",\"Ange drifttid!\",\"s\",\"Ange kvot aktuell lagermängd/årsmängd [ton TS/ton TS] (kolumn E) samt uppehållstid [h] (kolumn G)\",\"\")","v":""}]
["Årligt utsläpp","Nm3 CH4/år",null,null,{"$f":"IF(C153=\"p\",E152/100*E155,IF(C153=\"h\",C150*$E$12,IF(C153=\"d\",C150*E153,IF(C153=\"s\",C150/E153*G153/2,0))))","v":0}]
["Årligt metanflöde","Nm3 CH4/år",null,null,{"$f":"$E$11","v":0}]
["Årlig förlust","%",null,null,{"$f":"100*E154/E155","v":{"$error":"#DIV/0!"}}]
[]
["VENTILATION 6",{"$f":"Val!C17","v":0},null,{"$f":"Val!G17","v":0}]
["INDATA"]
["CH4(utsläpp)","ppm",null,null,"online"]
["Tutsläpp","ºC",null,null,"tid (min):"]
["Differenstryck, pd","Pa",null,null,"Mätning av flöde"]
["Gashastighet","m/s"]
["Rör diameter","cm"]
["KONSTANTER"]
["putsläpp","kPa",101.3]
["Luft densitet","kg/Nm3",1.29]
["RESULTAT"]
["Luft densitet","kg/m3",{"$f":"C167*C166/101.3*273.15/(273.15+C161)","v":1.29}]
["Rör area","m2",{"$f":"(C164/100)^2*0.25*PI()","v":0}]
["Gashastighet","m/s",{"$f":"IF(AND(C162=\"\",C163=\"\"),0,IF(AND(C162<>\"\",C163<>\"\"),99999,IF(C162=\"\",C163,SQRT(2*C162/C169))))","v":0},null,{"$f":"IF(C171=99999,\"Ange Pa eller m/s!\",\"\")","v":""}]
["Qutsläpp","l/s",{"$f":"C170*C171*1000","v":0}]
["Qutsläpp","m3/h",{"$f":"IF(E162=\"Fläktdata m3/h\",E163,C172/1000*60*60)","v":0}]
["Qutsläpp","Nm3/h",{"$f":"IF(E162=\"Schablon 3000 Nm3/h\",3000,IF(E162=\"Schablon 6000 Nm3/h\",6000,C173*C166/101.3*273.15/(273.15+C161)))","v":0}]
["Momentant utsläpp","Nm3 CH4/h",{"$f":"C174*C160/1000000","v":0}]
["Momentant metanflöde","Nm3 CH4/h",null,null,{"$f":"$E$8","v":0}]
["Momentan förlust","%",null,null,{"$f":"100*C175/$E$8","v":{"$error":"#DIV/0!"}}]
["ÅRSVÄRDEN","Skalning:","h",null,null,null,null,{"$f":"_xlfn.SWITCH(C178,\"d\",\"Ange drifttid!\",\"s\",\"Ange kvot aktuell lagermängd/årsmängd [ton TS/ton TS] (kolumn E) samt uppehållstid [h] (kolumn G)\",\"\")","v":""}]
["Årligt utsläpp","Nm3 CH4/år",null,null,{"$f":"IF(C178=\"p\",E177/100*E180,IF(C178=\"h\",C175*$E$12,IF(C178=\"d\",C175*E178,IF(C178=\"s\",C175/E178*G178/2,0))))","v":0}]
["Årligt metanflöde","Nm3 CH4/år",null,null,{"$f":"$E$11","v":0}]
["Årlig förlust","%",null,null,{"$f":"100*E179/E180","v":{"$error":"#DIV/0!"}}]
[]
["VENTILATION 7",{"$f":"Val!C18","v":0},null,{"$f":"Val!G18","v":0}]
["INDATA"]
["CH4(utsläpp)","ppm",null,null,"online"]
["Tutsläpp","ºC",null,null,"tid (min):"]
["Differenstryck, pd","Pa",null,null,"Mätning av flöde"]
["Gashastighet","m/s"]
["Rör diameter","cm"]
["KONSTANTER"]
["putsläpp","kPa",101.3]
["Luft densitet","kg/Nm3",1.29]
["RESULTAT"]
["Luft densitet","kg/m3",{"$f":"C192*C191/101.3*273.15/(273.15+C186)","v":1.29}]
["Rör area","m2",{"$f":"(C189/100)^2*0.25*PI()","v":0}]
["Gashastighet","m/s",{"$f":"IF(AND(C187=\"\",C188=\"\"),0,IF(AND(C187<>\"\",C188<>\"\"),99999,IF(C187=\"\",C188,SQRT(2*C187/C194))))","v":0},null,{"$f":"IF(C196=99999,\"Ange Pa eller m/s!\",\"\")","v":""}]
["Qutsläpp","l/s",{"$f":"C195*C196*1000","v":0}]
["Qutsläpp","m3/h",{"$f":"IF(E187=\"Fläktdata m3/h\",E188,C197/1000*60*60)","v":0}]
["Qutsläpp","Nm3/h",{"$f":"IF(E187=\"Schablon 3000 Nm3/h\",3000,IF(E187=\"Schablon 6000 Nm3/h\",6000,C198*C191/101.3*273.15/(273.15+C186)))","v":0}]
["Momentant utsläpp","Nm3 CH4/h",{"$f":"C199*C185/1000000","v":0}]
["Momentant metanflöde","Nm3 CH4/h",null,null,{"$f":"$E$8","v":0}]
["Momentan förlust","%",null,null,{"$f":"100*C200/$E$8","v":{"$error":"#DIV/0!"}}]
["ÅRSVÄRDEN","Skalning:","h",null,null,null,null,{"$f":"_xlfn.SWITCH(C203,\"d\",\"Ange drifttid!\",\"s\",\"Ange kvot aktuell lagermängd/årsmängd [ton TS/ton TS] (kolumn E) samt uppehållstid [h] (kolumn G)\",\"\")","v":""}]
["Årligt utsläpp","Nm3 CH4/år",null,null,{"$f":"IF(C203=\"p\",E202/100*E205,IF(C203=\"h\",C200*$E$12,IF(C203=\"d\",C200*E203,IF(C203=\"s\",C200/E203*G203/2,0))))","v":0}]
["Årligt metanflöde","Nm3 CH4/år",null,null,{"$f":"$E$11","v":0}]
["Årlig förlust","%",null,null,{"$f":"100*E204/E205","v":{"$error":"#DIV/0!"}}]
[]
["VENTILATION 8",{"$f":"Val!C19","v":0},null,{"$f":"Val!G19","v":0}]
["INDATA"]
["CH4(utsläpp)","ppm",null,null,"online"]
["Tutsläpp","ºC",null,null,"tid (min):"]
["Differenstryck, pd","Pa",null,null,"Mätning av flöde"]
["Gashastighet","m/s"]
["Rör diameter","cm"]
["KONSTANTER"]
["putsläpp","kPa",101.3]
["Luft densitet","kg/Nm3",1.29]
["RESULTAT"]
["Luft densitet","kg/m3",{"$f":"C217*C216/101.3*273.15/(273.15+C211)","v":1.29}]
["Rör area","m2",{"$f":"(C214/100)^2*0.25*PI()","v":0}]
["Gashastighet","m/s",{"$f":"IF(AND(C212=\"\",C213=\"\"),0,IF(AND(C212<>\"\",C213<>\"\"),99999,IF(C212=\"\",C213,SQRT(2*C212/C219))))","v":0},null,{"$f":"IF(C221=99999,\"Ange Pa eller m/s!\",\"\")","v":""}]
["Qutsläpp","l/s",{"$f":"C220*C221*1000","v":0}]
["Qutsläpp","m3/h",{"$f":"IF(E212=\"Fläktdata m3/h\",E213,C222/1000*60*60)","v":0}]
["Qutsläpp","Nm3/h",{"$f":"IF(E212=\"Schablon 3000 Nm3/h\",3000,IF(E212=\"Schablon 6000 Nm3/h\",6000,C223*C216/101.3*273.15/(273.15+C211)))","v":0}]
["Momentant utsläpp","Nm3 CH4/h",{"$f":"C224*C210/1000000","v":0}]
["Momentant metanflöde","Nm3 CH4/h",null,null,{"$f":"$E$8","v":0}]
["Momentan förlust","%",null,null,{"$f":"100*C225/$E$8","v":{"$error":"#DIV/0!"}}]
["ÅRSVÄRDEN","Skalning:","h",null,null,null,null,{"$f":"_xlfn.SWITCH(C228,\"d\",\"Ange drifttid!\",\"s\",\"Ange kvot aktuell lagermängd/årsmängd [ton TS/ton TS] (kolumn E) samt uppehållstid [h] (kolumn G)\",\"\")","v":""}]
["Årligt utsläpp","Nm3 CH4/år",null,null,{"$f":"IF(C228=\"p\",E227/100*E230,IF(C228=\"h\",C225*$E$12,IF(C228=\"d\",C225*E228,IF(C228=\"s\",C225/E228*G228/2,0))))","v":0}]
["Årligt metanflöde","Nm3 CH4/år",null,null,{"$f":"$E$11","v":0}]
["Årlig förlust","%",null,null,{"$f":"100*E229/E230","v":{"$error":"#DIV/0!"}}]
[]
["VENTILATION 9",{"$f":"Val!C20","v":0},null,{"$f":"Val!G20","v":0}]
["INDATA"]
["CH4(utsläpp)","ppm",null,null,"online"]
["Tutsläpp","ºC",null,null,"tid (min):"]
["Differenstryck, pd","Pa",null,null,"Mätning av flöde"]
["Gashastighet","m/s"]
["Rör diameter","cm"]
["KONSTANTER"]
["putsläpp","kPa",101.3]
["Luft densitet","kg/Nm3",1.29]
["RESULTAT"]
["Luft densitet","kg/m3",{"$f":"C242*C241/101.3*273.15/(273.15+C236)","v":1.29}]
["Rör area","m2",{"$f":"(C239/100)^2*0.25*PI()","v":0}]
["Gashastighet","m/s",{"$f":"IF(AND(C237=\"\",C238=\"\"),0,IF(AND(C237<>\"\",C238<>\"\"),99999,IF(C237=\"\",C238,SQRT(2*C237/C244))))","v":0},null,{"$f":"IF(C246=99999,\"Ange Pa eller m/s!\",\"\")","v":""}]
["Qutsläpp","l/s",{"$f":"C245*C246*1000","v":0}]
["Qutsläpp","m3/h",{"$f":"IF(E237=\"Fläktdata m3/h\",E238,C247/1000*60*60)","v":0}]
["Qutsläpp","Nm3/h",{"$f":"IF(E237=\"Schablon 3000 Nm3/h\",3000,IF(E237=\"Schablon 6000 Nm3/h\",6000,C248*C241/101.3*273.15/(273.15+C236)))","v":0}]
["Momentant utsläpp","Nm3 CH4/h",{"$f":"C249*C235/1000000","v":0}]
["Momentant metanflöde","Nm3 CH4/h",null,null,{"$f":"$E$8","v":0}]
["Momentan förlust","%",null,null,{"$f":"100*C250/$E$8","v":{"$error":"#DIV/0!"}}]
["ÅRSVÄRDEN","Skalning:","h",null,null,null,null,{"$f":"_xlfn.SWITCH(C253,\"d\",\"Ange drifttid!\",\"s\",\"Ange kvot aktuell lagermängd/årsmängd [ton TS/ton TS] (kolumn E) samt uppehållstid [h] (kolumn G)\",\"\")","v":""}]
["Årligt utsläpp","Nm3 CH4/år",null,null,{"$f":"IF(C253=\"p\",E252/100*E255,IF(C253=\"h\",C250*$E$12,IF(C253=\"d\",C250*E253,IF(C253=\"s\",C250/E253*G253/2,0))))","v":0}]
["Årligt metanflöde","Nm3 CH4/år",null,null,{"$f":"$E$11","v":0}]
["Årlig förlust","%",null,null,{"$f":"100*E254/E255","v":{"$error":"#DIV/0!"}}]
[]
["VENTILATION 10",{"$f":"Val!C21","v":0},null,{"$f":"Val!G21","v":0}]
["INDATA"]
["CH4(utsläpp)","ppm",null,null,"online"]
["Tutsläpp","ºC",null,null,"tid (min):"]
["Differenstryck, pd","Pa",null,null,"Mätning av flöde"]
["Gashastighet","m/s"]
["Rör diameter","cm"]
["KONSTANTER"]
["putsläpp","kPa",101.3]
["Luft densitet","kg/Nm3",1.29]
["RESULTAT"]
["Luft densitet","kg/m3",{"$f":"C267*C266/101.3*273.15/(273.15+C261)","v":1.29}]
["Rör area","m2",{"$f":"(C264/100)^2*0.25*PI()","v":0}]
["Gashastighet","m/s",{"$f":"IF(AND(C262=\"\",C263=\"\"),0,IF(AND(C262<>\"\",C263<>\"\"),99999,IF(C262=\"\",C263,SQRT(2*C262/C269))))","v":0},null,{"$f":"IF(C271=99999,\"Ange Pa eller m/s!\",\"\")","v":""}]
["Qutsläpp","l/s",{"$f":"C270*C271*1000","v":0}]
["Qutsläpp","m3/h",{"$f":"IF(E262=\"Fläktdata m3/h\",E263,C272/1000*60*60)","v":0}]
["Qutsläpp","Nm3/h",{"$f":"IF(E262=\"Schablon 3000 Nm3/h\",3000,IF(E262=\"Schablon 6000 Nm3/h\",6000,C273*C266/101.3*273.15/(273.15+C261)))","v":0}]
["Momentant utsläpp","Nm3 CH4/h",{"$f":"C274*C260/1000000","v":0}]
["Momentant metanflöde","Nm3 CH4/h",null,null,{"$f":"$E$8","v":0}]
["Momentan förlust","%",null,null,{"$f":"100*C275/$E$8","v":{"$error":"#DIV/0!"}}]
["ÅRSVÄRDEN","Skalning:","h",null,null,null,null,{"$f":"_xlfn.SWITCH(C278,\"d\",\"Ange drifttid!\",\"s\",\"Ange kvot aktuell lagermängd/årsmängd [ton TS/ton TS] (kolumn E) samt uppehållstid [h] (kolumn G)\",\"\")","v":""}]
["Årligt utsläpp","Nm3 CH4/år",null,null,{"$f":"IF(C278=\"p\",E277/100*E280,IF(C278=\"h\",C275*$E$12,IF(C278=\"d\",C275*E278,IF(C278=\"s\",C275/E278*G278/2,0))))","v":0}]
["Årligt metanflöde","Nm3 CH4/år",null,null,{"$f":"$E$11","v":0}]
["Årlig förlust","%",null,null,{"$f":"100*E279/E280","v":{"$error":"#DIV/0!"}}]
[]
["VENTILATION 11",{"$f":"Val!C22","v":0},null,{"$f":"Val!G22","v":0}]
["INDATA"]
["CH4(utsläpp)","ppm",null,null,"online"]
["Tutsläpp","ºC",null,null,"tid (min):"]
["Differenstryck, pd","Pa",null,null,"Mätning av flöde"]
["Gashastighet","m/s"]
["Rör diameter","cm"]
["KONSTANTER"]
["putsläpp","kPa",101.3]
["Luft densitet","kg/Nm3",1.29]
["RESULTAT"]
["Luft densitet","kg/m3",{"$f":"C292*C291/101.3*273.15/(273.15+C286)","v":1.29}]
["Rör area","m2",{"$f":"(C289/100)^2*0.25*PI()","v":0}]
["Gashastighet","m/s",{"$f":"IF(AND(C287=\"\",C288=\"\"),0,IF(AND(C287<>\"\",C288<>\"\"),99999,IF(C287=\"\",C288,SQRT(2*C287/C294))))","v":0},null,{"$f":"IF(C296=99999,\"Ange Pa eller m/s!\",\"\")","v":""}]
["Qutsläpp","l/s",{"$f":"C295*C296*1000","v":0}]
["Qutsläpp","m3/h",{"$f":"IF(E287=\"Fläktdata m3/h\",E288,C297/1000*60*60)","v":0}]
["Qutsläpp","Nm3/h",{"$f":"IF(E287=\"Schablon 3000 Nm3/h\",3000,IF(E287=\"Schablon 6000 Nm3/h\",6000,C298*C291/101.3*273.15/(273.15+C286)))","v":0}]
["Momentant utsläpp","Nm3 CH4/h",{"$f":"C299*C285/1000000","v":0}]
["Momentant metanflöde","Nm3 CH4/h",null,null,{"$f":"$E$8","v":0}]
["Momentan förlust","%",null,null,{"$f":"100*C300/$E$8","v":{"$error":"#DIV/0!"}}]
["ÅRSVÄRDEN","Skalning:","h",null,null,null,null,{"$f":"_xlfn.SWITCH(C303,\"d\",\"Ange drifttid!\",\"s\",\"Ange kvot aktuell lagermängd/årsmängd [ton TS/ton TS] (kolumn E) samt uppehållstid [h] (kolumn G)\",\"\")","v":""}]
["Årligt utsläpp","Nm3 CH4/år",null,null,{"$f":"IF(C303=\"p\",E302/100*E305,IF(C303=\"h\",C300*$E$12,IF(C303=\"d\",C300*E303,IF(C303=\"s\",C300/E303*G303/2,0))))","v":0}]
["Årligt metanflöde","Nm3 CH4/år",null,null,{"$f":"$E$11","v":0}]
["Årlig förlust","%",null,null,{"$f":"100*E304/E305","v":{"$error":"#DIV/0!"}}]
[]
["VENTILATION 12",{"$f":"Val!C23","v":0},null,{"$f":"Val!G23","v":0}]
["INDATA"]
["CH4(utsläpp)","ppm",null,null,"online"]
["Tutsläpp","ºC",null,null,"tid (min):"]
["Differenstryck, pd","Pa",null,null,"Mätning av flöde"]
["Gashastighet","m/s"]
["Rör diameter","cm"]
["KONSTANTER"]
["putsläpp","kPa",101.3]
["Luft densitet","kg/Nm3",1.29]
["RESULTAT"]
["Luft densitet","kg/m3",{"$f":"C317*C316/101.3*273.15/(273.15+C311)","v":1.29}]
["Rör area","m2",{"$f":"(C314/100)^2*0.25*PI()","v":0}]
["Gashastighet","m/s",{"$f":"IF(AND(C312=\"\",C313=\"\"),0,IF(AND(C312<>\"\",C313<>\"\"),99999,IF(C312=\"\",C313,SQRT(2*C312/C319))))","v":0},null,{"$f":"IF(C321=99999,\"Ange Pa eller m/s!\",\"\")","v":""}]
["Qutsläpp","l/s",{"$f":"C320*C321*1000","v":0}]
["Qutsläpp","m3/h",{"$f":"IF(E312=\"Fläktdata m3/h\",E313,C322/1000*60*60)","v":0}]
["Qutsläpp","Nm3/h",{"$f":"IF(E312=\"Schablon 3000 Nm3/h\",3000,IF(E312=\"Schablon 6000 Nm3/h\",6000,C323*C316/101.3*273.15/(273.15+C311)))","v":0}]
["Momentant utsläpp","Nm3 CH4/h",{"$f":"C324*C310/1000000","v":0}]
["Momentant metanflöde","Nm3 CH4/h",null,null,{"$f":"$E$8","v":0}]
["Momentan förlust","%",null,null,{"$f":"100*C325/$E$8","v":{"$error":"#DIV/0!"}}]
["ÅRSVÄRDEN","Skalning:","h",null,null,null,null,{"$f":"_xlfn.SWITCH(C328,\"d\",\"Ange drifttid!\",\"s\",\"Ange kvot aktuell lagermängd/årsmängd [ton TS/ton TS] (kolumn E) samt uppehållstid [h] (kolumn G)\",\"\")","v":""}]
["Årligt utsläpp","Nm3 CH4/år",null,null,{"$f":"IF(C328=\"p\",E327/100*E330,IF(C328=\"h\",C325*$E$12,IF(C328=\"d\",C325*E328,IF(C328=\"s\",C325/E328*G328/2,0))))","v":0}]
["Årligt metanflöde","Nm3 CH4/år",null,null,{"$f":"$E$11","v":0}]
["Årlig förlust","%",null,null,{"$f":"100*E329/E330","v":{"$error":"#DIV/0!"}}]
[]
["UTSLÄPP (Nm3/år) 1",{"$f":"Val!C24","v":0},null,{"$f":"Val!G24","v":0}]
["INDATA"]
["Utsläpp","Nm3 CH4/år"]
["RESULTAT","Skalning:","h"]
["Momentant utsläpp","Nm3 CH4/h",null,null,{"$f":"IF(C336=\"p\",E343/100*$E$8,IF(C336=\"h\",C335/$E$12,0))","v":{"$error":"#DIV/0!"}}]
["Momentant metanflöde","Nm3 CH4/h",null,null,{"$f":"$E$8","v":0}]
["Momentan förlust","%",null,null,{"$f":"E337/$E$8*100","v":{"$error":"#DIV/0!"}}]
["ÅRSVÄRDEN"]
["Årligt utsläpp","Nm3 CH4/år",null,null,{"$f":"C335","v":0}]
["Årligt metanflöde","Nm3 CH4/år",null,null,{"$f":"$E$11","v":0}]
["Årlig förlust","%",null,null,{"$f":"100*E341/E342","v":{"$error":"#DIV/0!"}}]
[]
["UTSLÄPP (Nm3/år) 2",{"$f":"Val!C25","v":0},null,{"$f":"Val!G25","v":0}]
["INDATA"]
["Utsläpp","Nm3 CH4/år"]
["RESULTAT","Skalning:","h"]
["Momentant utsläpp","Nm3 CH4/h",null,null,{"$f":"IF(C348=\"p\",E355/100*$E$8,IF(C348=\"h\",C347/$E$12,0))","v":{"$error":"#DIV/0!"}}]
["Momentant metanflöde","Nm3 CH4/h",null,null,{"$f":"$E$8","v":0}]
["Momentan förlust","%",null,null,{"$f":"E349/$E$8*100","v":{"$error":"#DIV/0!"}}]
["ÅRSVÄRDEN"]
["Årligt utsläpp","Nm3 CH4/år",null,null,{"$f":"C347","v":0}]
["Årligt metanflöde","Nm3 CH4/år",null,null,{"$f":"$E$11","v":0}]
["Årlig förlust","%",null,null,{"$f":"100*E353/E354","v":{"$error":"#DIV/0!"}}]
[]
["UTSLÄPP (Nm3/h) 1",{"$f":"Val!C26","v":0},null,{"$f":"Val!G26","v":0}]
["INDATA"]
["Utsläpp","Nm3 CH4/h"]
["RESULTAT"]
["Momentant utsläpp","Nm3 CH4/h",{"$f":"C359","v":0}]
["Momentant metanflöde","Nm3 CH4/h",null,null,{"$f":"$E$8","v":0}]
["Momentan förlust","%",null,null,{"$f":"C361/$E$8*100","v":{"$error":"#DIV/0!"}}]
["ÅRSVÄRDEN","Skalning:","h",null,null,null,null,{"$f":"_xlfn.SWITCH(C364,\"d\",\"Ange drifttid!\",\"s\",\"Ange kvot aktuell lagermängd/årsmängd [ton TS/ton TS] (kolumn E) samt uppehållstid [h] (kolumn G)\",\"\")","v":""}]
["Årligt utsläpp","Nm3 CH4/år",null,null,{"$f":"IF(C364=\"p\",E363/100*E366,IF(C364=\"h\",C361*$E$12,IF(C364=\"d\",C361*E364,IF(C364=\"s\",C361/E364*G364/2,0))))","v":0}]
["Årligt metanflöde","Nm3 CH4/år",null,null,{"$f":"$E$11","v":0}]
["Årlig förlust","%",null,null,{"$f":"100*E365/E366","v":{"$error":"#DIV/0!"}}]
[]
["UTSLÄPP (Nm3/h) 2",{"$f":"Val!C27","v":0},null,{"$f":"Val!G27","v":0}]
["INDATA"]
["Utsläpp","Nm3 CH4/h"]
["RESULTAT"]
["Momentant utsläpp","Nm3 CH4/h",{"$f":"C371","v":0}]
["Momentant metanflöde","Nm3 CH4/h",null,null,{"$f":"$E$8","v":0}]
["Momentan förlust","%",null,null,{"$f":"C373/$E$8*100","v":{"$error":"#DIV/0!"}}]
["ÅRSVÄRDEN","Skalning:","h",null,null,null,null,{"$f":"_xlfn.SWITCH(C376,\"d\",\"Ange drifttid!\",\"s\",\"Ange kvot aktuell lagermängd/årsmängd [ton TS/ton TS] (kolumn E) samt uppehållstid [h] (kolumn G)\",\"\")","v":""}]
["Årligt utsläpp","Nm3 CH4/år",null,null,{"$f":"IF(C376=\"p\",E375/100*E378,IF(C376=\"h\",C373*$E$12,IF(C376=\"d\",C373*E376,IF(C376=\"s\",C373/E376*G376/2,0))))","v":0}]
["Årligt metanflöde","Nm3 CH4/år",null,null,{"$f":"$E$11","v":0}]
["Årlig förlust","%",null,null,{"$f":"100*E377/E378","v":{"$error":"#DIV/0!"}}]
[]
["UTSLÄPP (Nm3/h) 3",{"$f":"Val!C28","v":0},null,{"$f":"Val!G28","v":0}]
["INDATA"]
["Utsläpp","Nm3 CH4/h"]
["RESULTAT"]
["Momentant utsläpp","Nm3 CH4/h",{"$f":"C383","v":0}]
["Momentant metanflöde","Nm3 CH4/h",null,null,{"$f":"$E$8","v":0}]
["Momentan förlust","%",null,null,{"$f":"C385/$E$8*100","v":{"$error":"#DIV/0!"}}]
["ÅRSVÄRDEN","Skalning:","h",null,null,null,null,{"$f":"_xlfn.SWITCH(C388,\"d\",\"Ange drifttid!\",\"s\",\"Ange kvot aktuell lagermängd/årsmängd [ton TS/ton TS] (kolumn E) samt uppehållstid [h] (kolumn G)\",\"\")","v":""}]
["Årligt utsläpp","Nm3 CH4/år",null,null,{"$f":"IF(C388=\"p\",E387/100*E390,IF(C388=\"h\",C385*$E$12,IF(C388=\"d\",C385*E388,IF(C388=\"s\",C385/E388*G388/2,0))))","v":0}]
["Årligt metanflöde","Nm3 CH4/år",null,null,{"$f":"$E$11","v":0}]
["Årlig förlust","%",null,null,{"$f":"100*E389/E390","v":{"$error":"#DIV/0!"}}]
[]
["UTSLÄPP (Nm3/h) 4",{"$f":"Val!C29","v":0},null,{"$f":"Val!G29","v":0}]
["INDATA"]
["Utsläpp","Nm3 CH4/h"]
["RESULTAT"]
["Momentant utsläpp","Nm3 CH4/h",{"$f":"C395","v":0}]
["Momentant metanflöde","Nm3 CH4/h",null,null,{"$f":"$E$8","v":0}]
["Momentan förlust","%",null,null,{"$f":"C397/$E$8*100","v":{"$error":"#DIV/0!"}}]
["ÅRSVÄRDEN","Skalning:","h",null,null,null,null,{"$f":"_xlfn.SWITCH(C400,\"d\",\"Ange drifttid!\",\"s\",\"Ange kvot aktuell lagermängd/årsmängd [ton TS/ton TS] (kolumn E) samt uppehållstid [h] (kolumn G)\",\"\")","v":""}]
["Årligt utsläpp","Nm3 CH4/år",null,null,{"$f":"IF(C400=\"p\",E399/100*E402,IF(C400=\"h\",C397*$E$12,IF(C400=\"d\",C397*E400,IF(C400=\"s\",C397/E400*G400/2,0))))","v":0}]
["Årligt metanflöde","Nm3 CH4/år",null,null,{"$f":"$E$11","v":0}]
["Årlig förlust","%",null,null,{"$f":"100*E401/E402","v":{"$error":"#DIV/0!"}}]
[]
["UTSLÄPP (Nm3/h) 5",{"$f":"Val!C30","v":0},null,{"$f":"Val!G30","v":0}]
["INDATA"]
["Utsläpp","Nm3 CH4/h"]
["RESULTAT"]
["Momentant utsläpp","Nm3 CH4/h",{"$f":"C407","v":0}]
["Momentant metanflöde","Nm3 CH4/h",null,null,{"$f":"$E$8","v":0}]
["Momentan förlust","%",null,null,{"$f":"C409/$E$8*100","v":{"$error":"#DIV/0!"}}]
["ÅRSVÄRDEN","Skalning:","h",null,null,null,null,{"$f":"_xlfn.SWITCH(C412,\"d\",\"Ange drifttid!\",\"s\",\"Ange kvot aktuell lagermängd/årsmängd [ton TS/ton TS] (kolumn E) samt uppehållstid [h] (kolumn G)\",\"\")","v":""}]
["Årligt utsläpp","Nm3 CH4/år",null,null,{"$f":"IF(C412=\"p\",E411/100*E414,IF(C412=\"h\",C409*$E$12,IF(C412=\"d\",C409*E412,IF(C412=\"s\",C409/E412*G412/2,0))))","v":0}]
["Årligt metanflöde","Nm3 CH4/år",null,null,{"$f":"$E$11","v":0}]
["Årlig förlust","%",null,null,{"$f":"100*E413/E414","v":{"$error":"#DIV/0!"}}]
[]
["Uppdatera formeln i E15 om fler utsläppspunkter läggs till manuellt"]
["Uppdatera formeln i E17 om fler utsläppspunkter läggs till manuellt"]
["Lösenord: \"EgMet\""]

{"sheet":"Sid 1","index":2,"n_rows":46,"n_cols":3,"rows_kept":46,"cut":false,"hidden":false,"merged":[]}
[]
[null,"Rapport version"]
[null,"Utgåva"]
[null,"Datum"]
[]
[null,"Anläggning"]
[null,"Anläggningsnamn"]
[null,"Adress"]
[null,"Huvudman/ägare"]
[null,"Kontaktperson"]
[null,"Telefon"]
[null,"Email"]
[]
[null,"Utförare av mätning"]
[null,"Företag"]
[null,"Utförare"]
[null,"Telefon"]
[null,"Email"]
[]
[null,"Genomförande av mätning"]
[null,"Mätdatum"]
[null,"Tid"]
[null,"Väderförhållanden"]
[null,"Omgivningstemperatur"]
[null,"Mätinstrument (metan)"]
[null,"Kalibreringsgaser"]
[null,"Mätinstrument (gasflöde)"]
[null,"Kommentar rörande mätning"]
[]
[null,"Läcksökning"]
[null,"Finns rutin?"]
[null,"Intervall"]
[null,"Utrustning"]
[null,"Utfört enligt rutin?"]
[null,"(forts.)"]
[]
[]
[null,"PRODUKTIONSDATA"]
[null,"Driftförhållanden vid mätning"]
[null,"Rågasflöde (Nm3/h)",{"$f":"Beräkningar!E6","v":0}]
[null,"Rågas metanhalt (vol-%)",{"$f":"Beräkningar!E7","v":0}]
[null,"Kommentar kring driften","Normal"]
[]
[null,"Data gällande årsproduktion"]
[null,"Behandlad rågas (Nm3/år)",{"$f":"Beräkningar!E9","v":0}]
[null,"Rågas metanhalt (vol-%)",{"$f":"Beräkningar!E10","v":0}]

{"sheet":"Analysinstrument","index":3,"n_rows":22,"n_cols":6,"rows_kept":22,"cut":false,"hidden":false,"merged":[[21,1,21,7],[15,1,15,7],[1,1,1,7],[3,1,3,7],[14,1,14,7],[20,1,20,7],[8,1,8,7],[2,1,2,7],[5,1,5,7],[6,1,6,7],[4,1,4,7],[7,1,7,7]]}
[]
[null,"Identifikation av utsläppsobjekt"]
[null,{"$f":"IF(Val!$B$5=\"Samrötning\",Val!$E11,Val!$F11)","v":0}]
[null,"Beskrivning av utsläppsobjekt och mätpunkt"]
[null,"Ett litet flöde gas leds kontinuerligt genom anläggningens gasanalysinstrument och vidare till atmosfär."]
[null,"X st rågasflöden har identifierats i anläggningen."]
[null,"Beskrivning av mätningens genomförande"]
[null,"Analyspanelens rotametrar har avlästs."]
[null,"Momentant utsläpp och beräknad förlust (Nm3 CH4/h)"]
[null,"Beräkning sker på momentana (avlästa) värden av metanhalt."]
[null,"Qutsläpp","l/h",{"$f":"Beräkningar!C24","v":0}]
[null,"Momentant utsläpp","Nm3 CH4/h",{"$f":"Beräkningar!C25","v":0}]
[null,"Momentant metanflöde","Nm3 CH4/h",null,null,{"$f":"Beräkningar!E26","v":0}]
[null,"Momentan förlust","%",null,null,{"$f":"Beräkningar!E27","v":{"$error":"#DIV/0!"}}]
[null,"Beräknad kvantifiering av årliga utsläpp (Nm3 CH4/år)"]
[null,"Beräkning sker på årsmedelvärden av metanhalt."]
[]
[null,"Årligt utsläpp","Nm3 CH4/år",{"$f":"Beräkningar!C29","v":0}]
[null,"Årligt metanflöde","Nm3 CH4/år",null,null,{"$f":"Beräkningar!E30","v":0}]
[null,"Årlig förlust","%",null,null,{"$f":"Beräkningar!E31","v":{"$error":"#DIV/0!"}}]
[null,"Förslag på åtgärd"]
[null,"Se till att flödena inte är högre än nödvändigt."]

{"sheet":"Ventilation 1","index":4,"n_rows":23,"n_cols":6,"rows_kept":23,"cut":false,"hidden":false,"merged":[[16,1,16,7],[21,1,21,7],[22,1,22,7],[1,1,1,2],[2,1,2,2],[6,1,6,7],[7,1,7,7],[8,1,8,7],[9,1,9,7],[15,1,15,7],[1,3,1,7],[2,3,2,7],[3,1,3,7],[4,1,4,7],[5,1,5,7]]}
[]
[null,"Utsläppsobjekt",null,"Mätpunkt/lokal benämning/tag"]
[null,{"$f":"IF(Val!$B$5=\"Samrötning\",Val!$E12,Val!$F12)","v":0},null,{"$f":"IF(Val!$G12=\"\",\"-\",Val!$G12)","v":"-"}]
[null,"Beskrivning av utsläppsobjekt och mätpunkt"]
[]
[]
[null,"Beskrivning av mätningens genomförande"]
[null,{"$f":"_xlfn.SWITCH(Beräkningar!E35,\"online\",CONCATENATE(\"Metanhalt är uppmätt kontinuerligt med FID under \",TEXT(Beräkningar!F36,0),\" min.\"),\"påsprov\",CONCATENATE(\"Metanhalt är uppmätt med FID i påsprov med provtagningstid \",TEXT(Beräkningar!F36,0),\" min\"))","v":"Metanhalt är uppmätt kontinuerligt med FID under 0 min."}]
[null,{"$f":"_xlfn.SWITCH(Beräkningar!E37,\"Schablon 3000 Nm3/h\",\"Flödet är satt till schablonvärde 3000 Nm3/h.\",\"Schablon 6000 Nm3/h\",\"Flödet är satt till schablonvärde 6000 Nm3/h.\",\"Fläktdata m3/h\",\"Flödet är antaget utifrån fläktdata.\",\"Mätning av flöde\",IF(Beräkningar!C37=\"\",\"Flödet är uppmätt med varmtrådsgivare.\",\"Flödet är uppmätt med pitotrör.\"))","v":"Flödet är uppmätt med varmtrådsgivare."}]
[null,"Momentant utsläpp och beräknad förlust (Nm3 CH4/h)"]
[null,"CH4(utsläpp)","ppm",{"$f":"Beräkningar!C35","v":0}]
[null,"Qutsläpp","Nm3/h",{"$f":"Beräkningar!C49","v":0}]
[null,"Momentant utsläpp","Nm3 CH4/h",{"$f":"Beräkningar!C50","v":0}]
[null,"Momentant metanflöde","Nm3 CH4/h",null,null,{"$f":"Beräkningar!E51","v":0}]
[null,"Momentan förlust","%",null,null,{"$f":"Beräkningar!E52","v":{"$error":"#DIV/0!"}}]
[null,"Beräknad kvantifiering av årliga utsläpp (Nm3 CH4/år)"]
[null,{"$f":"_xlfn.SWITCH(Beräkningar!C53,\"p\",\"Utsläppet antas variera relativt gasproduktionen i anläggningen\",\"h\",\"Utsläppet antas vara konstant under årets alla drifttimmar för anläggningen\",\"d\",\"Utsläppet antas vara konstant under delanläggningens/utsläppspunktens drifttimmar\",\"s\",\"Utsläppet antas variera relativt slamproduktionen i anläggningen\")","v":"Utsläppet antas vara konstant under årets alla drifttimmar för anläggningen"}]
[]
[null,"Årligt utsläpp","Nm3 CH4/år",null,null,{"$f":"Beräkningar!E54","v":0}]
[null,"Årligt metanflöde","Nm3 CH4/år",null,null,{"$f":"Beräkningar!E55","v":0}]
[null,"Årlig förlust","%",null,null,{"$f":"Beräkningar!E56","v":{"$error":"#DIV/0!"}}]
[null,"Förslag på åtgärd"]
[null,"Läcksökning och åtgärdande av funna läckor."]

{"sheet":"Ventilation 2","index":5,"n_rows":23,"n_cols":6,"rows_kept":23,"cut":false,"hidden":false,"merged":[[22,1,22,7],[7,1,7,7],[8,1,8,7],[9,1,9,7],[15,1,15,7],[16,1,16,7],[21,1,21,7],[6,1,6,7],[3,1,3,7],[4,1,4,7],[5,1,5,7],[1,1,1,2],[1,3,1,7],[2,1,2,2],[2,3,2,7]]}
[]
[null,"Utsläppsobjekt",null,"Mätpunkt/lokal benämning/tag"]
[null,{"$f":"IF(Val!$B$5=\"Samrötning\",Val!$E13,Val!$F13)","v":0},null,{"$f":"IF(Val!$G13=\"\",\"-\",Val!$G13)","v":"-"}]
[null,"Beskrivning av utsläppsobjekt och mätpunkt"]
[]
[]
[null,"Beskrivning av mätningens genomförande"]
[null,{"$f":"_xlfn.SWITCH(Beräkningar!E60,\"online\",CONCATENATE(\"Metanhalt är uppmätt kontinuerligt med FID under \",TEXT(Beräkningar!F61,0),\" min.\"),\"påsprov\",CONCATENATE(\"Metanhalt är uppmätt med FID i påsprov med provtagningstid \",TEXT(Beräkningar!F61,0),\" min\"))","v":"Metanhalt är uppmätt kontinuerligt med FID under 0 min."}]
[null,{"$f":"_xlfn.SWITCH(Beräkningar!E62,\"Schablon 3000 Nm3/h\",\"Flödet är satt till schablonvärde 3000 Nm3/h.\",\"Schablon 6000 Nm3/h\",\"Flödet är satt till schablonvärde 6000 Nm3/h.\",\"Fläktdata m3/h\",\"Flödet är antaget utifrån fläktdata.\",\"Mätning av flöde\",IF(Beräkningar!C62=\"\",\"Flödet är uppmätt med varmtrådsgivare.\",\"Flödet är uppmätt med pitotrör.\"))","v":"Flödet är uppmätt med varmtrådsgivare."}]
[null,"Momentant utsläpp och beräknad förlust (Nm3 CH4/h)"]
[null,"CH4(utsläpp)","ppm",{"$f":"Beräkningar!C60","v":0}]
[null,"Qutsläpp","Nm3/h",{"$f":"Beräkningar!C74","v":0}]
[null,"Momentant utsläpp","Nm3 CH4/h",{"$f":"Beräkningar!C75","v":0}]
[null,"Momentant metanflöde","Nm3 CH4/h",null,null,{"$f":"Beräkningar!E76","v":0}]
[null,"Momentan förlust","%",null,null,{"$f":"Beräkningar!E77","v":{"$error":"#DIV/0!"}}]
[null,"Beräknad kvantifiering av årliga utsläpp (Nm3 CH4/år)"]
[null,{"$f":"_xlfn.SWITCH(Beräkningar!C78,\"p\",\"Utsläppet antas variera relativt gasproduktionen i anläggningen\",\"h\",\"Utsläppet antas vara konstant under årets alla drifttimmar för anläggningen\",\"d\",\"Utsläppet antas vara konstant under delanläggningens/utsläppspunktens drifttimmar\",\"s\",\"Utsläppet antas variera relativt slamproduktionen i anläggningen\")","v":"Utsläppet antas vara konstant under årets alla drifttimmar för anläggningen"}]
[]
[null,"Årligt utsläpp","Nm3 CH4/år",null,null,{"$f":"Beräkningar!E79","v":0}]
[null,"Årligt metanflöde","Nm3 CH4/år",null,null,{"$f":"Beräkningar!E80","v":0}]
[null,"Årlig förlust","%",null,null,{"$f":"Beräkningar!E81","v":{"$error":"#DIV/0!"}}]
[null,"Förslag på åtgärd"]
[null,"Läcksökning och åtgärdande av funna läckor."]

{"sheet":"Ventilation 3","index":6,"n_rows":23,"n_cols":6,"rows_kept":23,"cut":false,"hidden":false,"merged":[[22,1,22,7],[7,1,7,7],[8,1,8,7],[9,1,9,7],[15,1,15,7],[16,1,16,7],[21,1,21,7],[6,1,6,7],[3,1,3,7],[4,1,4,7],[5,1,5,7],[1,1,1,2],[1,3,1,7],[2,1,2,2],[2,3,2,7]]}
[]
[null,"Utsläppsobjekt",null,"Mätpunkt/lokal benämning/tag"]
[null,{"$f":"IF(Val!$B$5=\"Samrötning\",Val!$E14,Val!$F14)","v":0},null,{"$f":"IF(Val!$G14=\"\",\"-\",Val!$G14)","v":"-"}]
[null,"Beskrivning av utsläppsobjekt och mätpunkt"]
[]
[]
[null,"Beskrivning av mätningens genomförande"]
[null,{"$f":"_xlfn.SWITCH(Beräkningar!E85,\"online\",CONCATENATE(\"Metanhalt är uppmätt kontinuerligt med FID under \",TEXT(Beräkningar!F86,0),\" min.\"),\"påsprov\",CONCATENATE(\"Metanhalt är uppmätt med FID i påsprov med provtagningstid \",TEXT(Beräkningar!F86,0),\" min\"))","v":"Metanhalt är uppmätt kontinuerligt med FID under 0 min."}]
[null,{"$f":"_xlfn.SWITCH(Beräkningar!E87,\"Schablon 3000 Nm3/h\",\"Flödet är satt till schablonvärde 3000 Nm3/h.\",\"Schablon 6000 Nm3/h\",\"Flödet är satt till schablonvärde 6000 Nm3/h.\",\"Fläktdata m3/h\",\"Flödet är antaget utifrån fläktdata.\",\"Mätning av flöde\",IF(Beräkningar!C87=\"\",\"Flödet är uppmätt med varmtrådsgivare.\",\"Flödet är uppmätt med pitotrör.\"))","v":"Flödet är uppmätt med varmtrådsgivare."}]
[null,"Momentant utsläpp och beräknad förlust (Nm3 CH4/h)"]
[null,"CH4(utsläpp)","ppm",{"$f":"Beräkningar!C85","v":0}]
[null,"Qutsläpp","Nm3/h",{"$f":"Beräkningar!C99","v":0}]
[null,"Momentant utsläpp","Nm3 CH4/h",{"$f":"Beräkningar!C100","v":0}]
[null,"Momentant metanflöde","Nm3 CH4/h",null,null,{"$f":"Beräkningar!E101","v":0}]
[null,"Momentan förlust","%",null,null,{"$f":"Beräkningar!E102","v":{"$error":"#DIV/0!"}}]
[null,"Beräknad kvantifiering av årliga utsläpp (Nm3 CH4/år)"]
[null,{"$f":"_xlfn.SWITCH(Beräkningar!C103,\"p\",\"Utsläppet antas variera relativt gasproduktionen i anläggningen\",\"h\",\"Utsläppet antas vara konstant under årets alla drifttimmar för anläggningen\",\"d\",\"Utsläppet antas vara konstant under delanläggningens/utsläppspunktens drifttimmar\",\"s\",\"Utsläppet antas variera relativt slamproduktionen i anläggningen\")","v":"Utsläppet antas vara konstant under årets alla drifttimmar för anläggningen"}]
[]
[null,"Årligt utsläpp","Nm3 CH4/år",null,null,{"$f":"Beräkningar!E104","v":0}]
[null,"Årligt metanflöde","Nm3 CH4/år",null,null,{"$f":"Beräkningar!E105","v":0}]
[null,"Årlig förlust","%",null,null,{"$f":"Beräkningar!E106","v":{"$error":"#DIV/0!"}}]
[null,"Förslag på åtgärd"]
[null,"Läcksökning och åtgärdande av funna läckor."]

{"sheet":"Ventilation 4","index":7,"n_rows":23,"n_cols":6,"rows_kept":23,"cut":false,"hidden":false,"merged":[[22,1,22,7],[7,1,7,7],[8,1,8,7],[9,1,9,7],[15,1,15,7],[16,1,16,7],[21,1,21,7],[6,1,6,7],[3,1,3,7],[4,1,4,7],[5,1,5,7],[1,1,1,2],[1,3,1,7],[2,1,2,2],[2,3,2,7]]}
[]
[null,"Utsläppsobjekt",null,"Mätpunkt/lokal benämning/tag"]
[null,{"$f":"IF(Val!$B$5=\"Samrötning\",Val!$E15,Val!$F15)","v":0},null,{"$f":"IF(Val!$G15=\"\",\"-\",Val!$G15)","v":"-"}]
[null,"Beskrivning av utsläppsobjekt och mätpunkt"]
[]
[]
[null,"Beskrivning av mätningens genomförande"]
[null,{"$f":"_xlfn.SWITCH(Beräkningar!E110,\"online\",CONCATENATE(\"Metanhalt är uppmätt kontinuerligt med FID under \",TEXT(Beräkningar!F111,0),\" min.\"),\"påsprov\",CONCATENATE(\"Metanhalt är uppmätt med FID i påsprov med provtagningstid \",TEXT(Beräkningar!F111,0),\" min\"))","v":"Metanhalt är uppmätt kontinuerligt med FID under 0 min."}]
[null,{"$f":"_xlfn.SWITCH(Beräkningar!E112,\"Schablon 3000 Nm3/h\",\"Flödet är satt till schablonvärde 3000 Nm3/h.\",\"Schablon 6000 Nm3/h\",\"Flödet är satt till schablonvärde 6000 Nm3/h.\",\"Fläktdata m3/h\",\"Flödet är antaget utifrån fläktdata.\",\"Mätning av flöde\",IF(Beräkningar!C112=\"\",\"Flödet är uppmätt med varmtrådsgivare.\",\"Flödet är uppmätt med pitotrör.\"))","v":"Flödet är uppmätt med varmtrådsgivare."}]
[null,"Momentant utsläpp och beräknad förlust (Nm3 CH4/h)"]
[null,"CH4(utsläpp)","ppm",{"$f":"Beräkningar!C110","v":0}]
[null,"Qutsläpp","Nm3/h",{"$f":"Beräkningar!C124","v":0}]
[null,"Momentant utsläpp","Nm3 CH4/h",{"$f":"Beräkningar!C125","v":0}]
[null,"Momentant metanflöde","Nm3 CH4/h",null,null,{"$f":"Beräkningar!E126","v":0}]
[null,"Momentan förlust","%",null,null,{"$f":"Beräkningar!E127","v":{"$error":"#DIV/0!"}}]
[null,"Beräknad kvantifiering av årliga utsläpp (Nm3 CH4/år)"]
[null,{"$f":"_xlfn.SWITCH(Beräkningar!C128,\"p\",\"Utsläppet antas variera relativt gasproduktionen i anläggningen\",\"h\",\"Utsläppet antas vara konstant under årets alla drifttimmar för anläggningen\",\"d\",\"Utsläppet antas vara konstant under delanläggningens/utsläppspunktens drifttimmar\",\"s\",\"Utsläppet antas variera relativt slamproduktionen i anläggningen\")","v":"Utsläppet antas vara konstant under årets alla drifttimmar för anläggningen"}]
[]
[null,"Årligt utsläpp","Nm3 CH4/år",null,null,{"$f":"Beräkningar!E129","v":0}]
[null,"Årligt metanflöde","Nm3 CH4/år",null,null,{"$f":"Beräkningar!E130","v":0}]
[null,"Årlig förlust","%",null,null,{"$f":"Beräkningar!E131","v":{"$error":"#DIV/0!"}}]
[null,"Förslag på åtgärd"]
[null,"Läcksökning och åtgärdande av funna läckor."]

{"sheet":"Ventilation 5","index":8,"n_rows":23,"n_cols":6,"rows_kept":23,"cut":false,"hidden":false,"merged":[[22,1,22,7],[7,1,7,7],[8,1,8,7],[9,1,9,7],[15,1,15,7],[16,1,16,7],[21,1,21,7],[6,1,6,7],[3,1,3,7],[4,1,4,7],[5,1,5,7],[1,1,1,2],[1,3,1,7],[2,1,2,2],[2,3,2,7]]}
[]
[null,"Utsläppsobjekt",null,"Mätpunkt/lokal benämning/tag"]
[null,{"$f":"IF(Val!$B$5=\"Samrötning\",Val!$E16,Val!$F16)","v":0},null,{"$f":"IF(Val!$G16=\"\",\"-\",Val!$G16)","v":"-"}]
[null,"Beskrivning av utsläppsobjekt och mätpunkt"]
[]
[]
[null,"Beskrivning av mätningens genomförande"]
[null,{"$f":"_xlfn.SWITCH(Beräkningar!E135,\"online\",CONCATENATE(\"Metanhalt är uppmätt kontinuerligt med FID under \",TEXT(Beräkningar!F136,0),\" min.\"),\"påsprov\",CONCATENATE(\"Metanhalt är uppmätt med FID i påsprov med provtagningstid \",TEXT(Beräkningar!F136,0),\" min\"))","v":"Metanhalt är uppmätt kontinuerligt med FID under 0 min."}]
[null,{"$f":"_xlfn.SWITCH(Beräkningar!E137,\"Schablon 3000 Nm3/h\",\"Flödet är satt till schablonvärde 3000 Nm3/h.\",\"Schablon 6000 Nm3/h\",\"Flödet är satt till schablonvärde 6000 Nm3/h.\",\"Fläktdata m3/h\",\"Flödet är antaget utifrån fläktdata.\",\"Mätning av flöde\",IF(Beräkningar!C137=\"\",\"Flödet är uppmätt med varmtrådsgivare.\",\"Flödet är uppmätt med pitotrör.\"))","v":"Flödet är uppmätt med varmtrådsgivare."}]
[null,"Momentant utsläpp och beräknad förlust (Nm3 CH4/h)"]
[null,"CH4(utsläpp)","ppm",{"$f":"Beräkningar!C135","v":0}]
[null,"Qutsläpp","Nm3/h",{"$f":"Beräkningar!C149","v":0}]
[null,"Momentant utsläpp","Nm3 CH4/h",{"$f":"Beräkningar!C150","v":0}]
[null,"Momentant metanflöde","Nm3 CH4/h",null,null,{"$f":"Beräkningar!E151","v":0}]
[null,"Momentan förlust","%",null,null,{"$f":"Beräkningar!E152","v":{"$error":"#DIV/0!"}}]
[null,"Beräknad kvantifiering av årliga utsläpp (Nm3 CH4/år)"]
[null,{"$f":"_xlfn.SWITCH(Beräkningar!C153,\"p\",\"Utsläppet antas variera relativt gasproduktionen i anläggningen\",\"h\",\"Utsläppet antas vara konstant under årets alla drifttimmar för anläggningen\",\"d\",\"Utsläppet antas vara konstant under delanläggningens/utsläppspunktens drifttimmar\",\"s\",\"Utsläppet antas variera relativt slamproduktionen i anläggningen\")","v":"Utsläppet antas vara konstant under årets alla drifttimmar för anläggningen"}]
[]
[null,"Årligt utsläpp","Nm3 CH4/år",null,null,{"$f":"Beräkningar!E154","v":0}]
[null,"Årligt metanflöde","Nm3 CH4/år",null,null,{"$f":"Beräkningar!E155","v":0}]
[null,"Årlig förlust","%",null,null,{"$f":"Beräkningar!E156","v":{"$error":"#DIV/0!"}}]
[null,"Förslag på åtgärd"]
[null,"Läcksökning och åtgärdande av funna läckor."]

{"sheet":"Ventilation 6","index":9,"n_rows":23,"n_cols":6,"rows_kept":23,"cut":false,"hidden":false,"merged":[[6,1,6,7],[3,1,3,7],[4,1,4,7],[5,1,5,7],[1,1,1,2],[1,3,1,7],[2,1,2,2],[2,3,2,7],[22,1,22,7],[7,1,7,7],[8,1,8,7],[9,1,9,7],[15,1,15,7],[16,1,16,7],[21,1,21,7]]}
[]
[null,"Utsläppsobjekt",null,"Mätpunkt/lokal benämning/tag"]
[null,{"$f":"IF(Val!$B$5=\"Samrötning\",Val!$E17,Val!$F17)","v":0},null,{"$f":"IF(Val!$G17=\"\",\"-\",Val!$G17)","v":"-"}]
[null,"Beskrivning av utsläppsobjekt och mätpunkt"]
[]
[]
[null,"Beskrivning av mätningens genomförande"]
[null,{"$f":"_xlfn.SWITCH(Beräkningar!E160,\"online\",CONCATENATE(\"Metanhalt är uppmätt kontinuerligt med FID under \",TEXT(Beräkningar!F161,0),\" min.\"),\"påsprov\",CONCATENATE(\"Metanhalt är uppmätt med FID i påsprov med provtagningstid \",TEXT(Beräkningar!F161,0),\" min\"))","v":"Metanhalt är uppmätt kontinuerligt med FID under 0 min."}]
[null,{"$f":"_xlfn.SWITCH(Beräkningar!E162,\"Schablon 3000 Nm3/h\",\"Flödet är satt till schablonvärde 3000 Nm3/h.\",\"Schablon 6000 Nm3/h\",\"Flödet är satt till schablonvärde 6000 Nm3/h.\",\"Fläktdata m3/h\",\"Flödet är antaget utifrån fläktdata.\",\"Mätning av flöde\",IF(Beräkningar!C162=\"\",\"Flödet är uppmätt med varmtrådsgivare.\",\"Flödet är uppmätt med pitotrör.\"))","v":"Flödet är uppmätt med varmtrådsgivare."}]
[null,"Momentant utsläpp och beräknad förlust (Nm3 CH4/h)"]
[null,"CH4(utsläpp)","ppm",{"$f":"Beräkningar!C160","v":0}]
[null,"Qutsläpp","Nm3/h",{"$f":"Beräkningar!C174","v":0}]
[null,"Momentant utsläpp","Nm3 CH4/h",{"$f":"Beräkningar!C175","v":0}]
[null,"Momentant metanflöde","Nm3 CH4/h",null,null,{"$f":"Beräkningar!E176","v":0}]
[null,"Momentan förlust","%",null,null,{"$f":"Beräkningar!E177","v":{"$error":"#DIV/0!"}}]
[null,"Beräknad kvantifiering av årliga utsläpp (Nm3 CH4/år)"]
[null,{"$f":"_xlfn.SWITCH(Beräkningar!C178,\"p\",\"Utsläppet antas variera relativt gasproduktionen i anläggningen\",\"h\",\"Utsläppet antas vara konstant under årets alla drifttimmar för anläggningen\",\"d\",\"Utsläppet antas vara konstant under delanläggningens/utsläppspunktens drifttimmar\",\"s\",\"Utsläppet antas variera relativt slamproduktionen i anläggningen\")","v":"Utsläppet antas vara konstant under årets alla drifttimmar för anläggningen"}]
[]
[null,"Årligt utsläpp","Nm3 CH4/år",null,null,{"$f":"Beräkningar!E179","v":0}]
[null,"Årligt metanflöde","Nm3 CH4/år",null,null,{"$f":"Beräkningar!E180","v":0}]
[null,"Årlig förlust","%",null,null,{"$f":"Beräkningar!E181","v":{"$error":"#DIV/0!"}}]
[null,"Förslag på åtgärd"]
[null,"Läcksökning och åtgärdande av funna läckor."]

{"sheet":"Ventilation 7","index":10,"n_rows":23,"n_cols":6,"rows_kept":23,"cut":false,"hidden":false,"merged":[[6,1,6,7],[3,1,3,7],[4,1,4,7],[5,1,5,7],[1,1,1,2],[1,3,1,7],[2,1,2,2],[2,3,2,7],[22,1,22,7],[7,1,7,7],[8,1,8,7],[9,1,9,7],[15,1,15,7],[16,1,16,7],[21,1,21,7]]}
[]
[null,"Utsläppsobjekt",null,"Mätpunkt/lokal benämning/tag"]
[null,{"$f":"IF(Val!$B$5=\"Samrötning\",Val!$E18,Val!$F18)","v":0},null,{"$f":"IF(Val!$G18=\"\",\"-\",Val!$G18)","v":"-"}]
[null,"Beskrivning av utsläppsobjekt och mätpunkt"]
[]
[]
[null,"Beskrivning av mätningens genomförande"]
[null,{"$f":"_xlfn.SWITCH(Beräkningar!E185,\"online\",CONCATENATE(\"Metanhalt är uppmätt kontinuerligt med FID under \",TEXT(Beräkningar!F186,0),\" min.\"),\"påsprov\",CONCATENATE(\"Metanhalt är uppmätt med FID i påsprov med provtagningstid \",TEXT(Beräkningar!F186,0),\" min\"))","v":"Metanhalt är uppmätt kontinuerligt med FID under 0 min."}]
[null,{"$f":"_xlfn.SWITCH(Beräkningar!E187,\"Schablon 3000 Nm3/h\",\"Flödet är satt till schablonvärde 3000 Nm3/h.\",\"Schablon 6000 Nm3/h\",\"Flödet är satt till schablonvärde 6000 Nm3/h.\",\"Fläktdata m3/h\",\"Flödet är antaget utifrån fläktdata.\",\"Mätning av flöde\",IF(Beräkningar!C187=\"\",\"Flödet är uppmätt med varmtrådsgivare.\",\"Flödet är uppmätt med pitotrör.\"))","v":"Flödet är uppmätt med varmtrådsgivare."}]
[null,"Momentant utsläpp och beräknad förlust (Nm3 CH4/h)"]
[null,"CH4(utsläpp)","ppm",{"$f":"Beräkningar!C185","v":0}]
[null,"Qutsläpp","Nm3/h",{"$f":"Beräkningar!C199","v":0}]
[null,"Momentant utsläpp","Nm3 CH4/h",{"$f":"Beräkningar!C200","v":0}]
[null,"Momentant metanflöde","Nm3 CH4/h",null,null,{"$f":"Beräkningar!E201","v":0}]
[null,"Momentan förlust","%",null,null,{"$f":"Beräkningar!E202","v":{"$error":"#DIV/0!"}}]
[null,"Beräknad kvantifiering av årliga utsläpp (Nm3 CH4/år)"]
[null,{"$f":"_xlfn.SWITCH(Beräkningar!C203,\"p\",\"Utsläppet antas variera relativt gasproduktionen i anläggningen\",\"h\",\"Utsläppet antas vara konstant under årets alla drifttimmar för anläggningen\",\"d\",\"Utsläppet antas vara konstant under delanläggningens/utsläppspunktens drifttimmar\",\"s\",\"Utsläppet antas variera relativt slamproduktionen i anläggningen\")","v":"Utsläppet antas vara konstant under årets alla drifttimmar för anläggningen"}]
[]
[null,"Årligt utsläpp","Nm3 CH4/år",null,null,{"$f":"Beräkningar!E204","v":0}]
[null,"Årligt metanflöde","Nm3 CH4/år",null,null,{"$f":"Beräkningar!E205","v":0}]
[null,"Årlig förlust","%",null,null,{"$f":"Beräkningar!E206","v":{"$error":"#DIV/0!"}}]
[null,"Förslag på åtgärd"]
[null,"Läcksökning och åtgärdande av funna läckor."]

{"sheet":"Ventilation 8","index":11,"n_rows":23,"n_cols":6,"rows_kept":23,"cut":false,"hidden":false,"merged":[[6,1,6,7],[3,1,3,7],[4,1,4,7],[5,1,5,7],[1,1,1,2],[1,3,1,7],[2,1,2,2],[2,3,2,7],[22,1,22,7],[7,1,7,7],[8,1,8,7],[9,1,9,7],[15,1,15,7],[16,1,16,7],[21,1,21,7]]}
[]
[null,"Utsläppsobjekt",null,"Mätpunkt/lokal benämning/tag"]
[null,{"$f":"IF(Val!$B$5=\"Samrötning\",Val!$E19,Val!$F19)","v":0},null,{"$f":"IF(Val!$G19=\"\",\"-\",Val!$G19)","v":"-"}]
[null,"Beskrivning av utsläppsobjekt och mätpunkt"]
[]
[]
[null,"Beskrivning av mätningens genomförande"]
[null,{"$f":"_xlfn.SWITCH(Beräkningar!E210,\"online\",CONCATENATE(\"Metanhalt är uppmätt kontinuerligt med FID under \",TEXT(Beräkningar!F211,0),\" min.\"),\"påsprov\",CONCATENATE(\"Metanhalt är uppmätt med FID i påsprov med provtagningstid \",TEXT(Beräkningar!F211,0),\" min\"))","v":"Metanhalt är uppmätt kontinuerligt med FID under 0 min."}]
[null,{"$f":"_xlfn.SWITCH(Beräkningar!E212,\"Schablon 3000 Nm3/h\",\"Flödet är satt till schablonvärde 3000 Nm3/h.\",\"Schablon 6000 Nm3/h\",\"Flödet är satt till schablonvärde 6000 Nm3/h.\",\"Fläktdata m3/h\",\"Flödet är antaget utifrån fläktdata.\",\"Mätning av flöde\",IF(Beräkningar!C212=\"\",\"Flödet är uppmätt med varmtrådsgivare.\",\"Flödet är uppmätt med pitotrör.\"))","v":"Flödet är uppmätt med varmtrådsgivare."}]
[null,"Momentant utsläpp och beräknad förlust (Nm3 CH4/h)"]
[null,"CH4(utsläpp)","ppm",{"$f":"Beräkningar!C210","v":0}]
[null,"Qutsläpp","Nm3/h",{"$f":"Beräkningar!C224","v":0}]
[null,"Momentant utsläpp","Nm3 CH4/h",{"$f":"Beräkningar!C225","v":0}]
[null,"Momentant metanflöde","Nm3 CH4/h",null,null,{"$f":"Beräkningar!E226","v":0}]
[null,"Momentan förlust","%",null,null,{"$f":"Beräkningar!E227","v":{"$error":"#DIV/0!"}}]
[null,"Beräknad kvantifiering av årliga utsläpp (Nm3 CH4/år)"]
[null,{"$f":"_xlfn.SWITCH(Beräkningar!C228,\"p\",\"Utsläppet antas variera relativt gasproduktionen i anläggningen\",\"h\",\"Utsläppet antas vara konstant under årets alla drifttimmar för anläggningen\",\"d\",\"Utsläppet antas vara konstant under delanläggningens/utsläppspunktens drifttimmar\",\"s\",\"Utsläppet antas variera relativt slamproduktionen i anläggningen\")","v":"Utsläppet antas vara konstant under årets alla drifttimmar för anläggningen"}]
[]
[null,"Årligt utsläpp","Nm3 CH4/år",null,null,{"$f":"Beräkningar!E229","v":0}]
[null,"Årligt metanflöde","Nm3 CH4/år",null,null,{"$f":"Beräkningar!E230","v":0}]
[null,"Årlig förlust","%",null,null,{"$f":"Beräkningar!E231","v":{"$error":"#DIV/0!"}}]
[null,"Förslag på åtgärd"]
[null,"Läcksökning och åtgärdande av funna läckor."]

{"sheet":"Ventilation 9","index":12,"n_rows":23,"n_cols":6,"rows_kept":23,"cut":false,"hidden":false,"merged":[[6,1,6,7],[3,1,3,7],[4,1,4,7],[5,1,5,7],[1,1,1,2],[1,3,1,7],[2,1,2,2],[2,3,2,7],[22,1,22,7],[7,1,7,7],[8,1,8,7],[9,1,9,7],[15,1,15,7],[16,1,16,7],[21,1,21,7]]}
[]
[null,"Utsläppsobjekt",null,"Mätpunkt/lokal benämning/tag"]
[null,{"$f":"IF(Val!$B$5=\"Samrötning\",Val!$E20,Val!$F20)","v":0},null,{"$f":"IF(Val!$G20=\"\",\"-\",Val!$G20)","v":"-"}]
[null,"Beskrivning av utsläppsobjekt och mätpunkt"]
[]
[]
[null,"Beskrivning av mätningens genomförande"]
[null,{"$f":"_xlfn.SWITCH(Beräkningar!E235,\"online\",CONCATENATE(\"Metanhalt är uppmätt kontinuerligt med FID under \",TEXT(Beräkningar!F236,0),\" min.\"),\"påsprov\",CONCATENATE(\"Metanhalt är uppmätt med FID i påsprov med provtagningstid \",TEXT(Beräkningar!F236,0),\" min\"))","v":"Metanhalt är uppmätt kontinuerligt med FID under 0 min."}]
[null,{"$f":"_xlfn.SWITCH(Beräkningar!E237,\"Schablon 3000 Nm3/h\",\"Flödet är satt till schablonvärde 3000 Nm3/h.\",\"Schablon 6000 Nm3/h\",\"Flödet är satt till schablonvärde 6000 Nm3/h.\",\"Fläktdata m3/h\",\"Flödet är antaget utifrån fläktdata.\",\"Mätning av flöde\",IF(Beräkningar!C237=\"\",\"Flödet är uppmätt med varmtrådsgivare.\",\"Flödet är uppmätt med pitotrör.\"))","v":"Flödet är uppmätt med varmtrådsgivare."}]
[null,"Momentant utsläpp och beräknad förlust (Nm3 CH4/h)"]
[null,"CH4(utsläpp)","ppm",{"$f":"Beräkningar!C235","v":0}]
[null,"Qutsläpp","Nm3/h",{"$f":"Beräkningar!C249","v":0}]
[null,"Momentant utsläpp","Nm3 CH4/h",{"$f":"Beräkningar!C250","v":0}]
[null,"Momentant metanflöde","Nm3 CH4/h",null,null,{"$f":"Beräkningar!E251","v":0}]
[null,"Momentan förlust","%",null,null,{"$f":"Beräkningar!E252","v":{"$error":"#DIV/0!"}}]
[null,"Beräknad kvantifiering av årliga utsläpp (Nm3 CH4/år)"]
[null,{"$f":"_xlfn.SWITCH(Beräkningar!C253,\"p\",\"Utsläppet antas variera relativt gasproduktionen i anläggningen\",\"h\",\"Utsläppet antas vara konstant under årets alla drifttimmar för anläggningen\",\"d\",\"Utsläppet antas vara konstant under delanläggningens/utsläppspunktens drifttimmar\",\"s\",\"Utsläppet antas variera relativt slamproduktionen i anläggningen\")","v":"Utsläppet antas vara konstant under årets alla drifttimmar för anläggningen"}]
[]
[null,"Årligt utsläpp","Nm3 CH4/år",null,null,{"$f":"Beräkningar!E254","v":0}]
[null,"Årligt metanflöde","Nm3 CH4/år",null,null,{"$f":"Beräkningar!E255","v":0}]
[null,"Årlig förlust","%",null,null,{"$f":"Beräkningar!E256","v":{"$error":"#DIV/0!"}}]
[null,"Förslag på åtgärd"]
[null,"Läcksökning och åtgärdande av funna läckor."]

{"sheet":"Ventilation 10","index":13,"n_rows":23,"n_cols":6,"rows_kept":23,"cut":false,"hidden":false,"merged":[[6,1,6,7],[3,1,3,7],[4,1,4,7],[5,1,5,7],[1,1,1,2],[1,3,1,7],[2,1,2,2],[2,3,2,7],[22,1,22,7],[7,1,7,7],[8,1,8,7],[9,1,9,7],[15,1,15,7],[16,1,16,7],[21,1,21,7]]}
[]
[null,"Utsläppsobjekt",null,"Mätpunkt/lokal benämning/tag"]
[null,{"$f":"IF(Val!$B$5=\"Samrötning\",Val!$E21,Val!$F21)","v":0},null,{"$f":"IF(Val!$G21=\"\",\"-\",Val!$G21)","v":"-"}]
[null,"Beskrivning av utsläppsobjekt och mätpunkt"]
[]
[]
[null,"Beskrivning av mätningens genomförande"]
[null,{"$f":"_xlfn.SWITCH(Beräkningar!E260,\"online\",CONCATENATE(\"Metanhalt är uppmätt kontinuerligt med FID under \",TEXT(Beräkningar!F261,0),\" min.\"),\"påsprov\",CONCATENATE(\"Metanhalt är uppmätt med FID i påsprov med provtagningstid \",TEXT(Beräkningar!F261,0),\" min\"))","v":"Metanhalt är uppmätt kontinuerligt med FID under 0 min."}]
[null,{"$f":"_xlfn.SWITCH(Beräkningar!E262,\"Schablon 3000 Nm3/h\",\"Flödet är satt till schablonvärde 3000 Nm3/h.\",\"Schablon 6000 Nm3/h\",\"Flödet är satt till schablonvärde 6000 Nm3/h.\",\"Fläktdata m3/h\",\"Flödet är antaget utifrån fläktdata.\",\"Mätning av flöde\",IF(Beräkningar!C262=\"\",\"Flödet är uppmätt med varmtrådsgivare.\",\"Flödet är uppmätt med pitotrör.\"))","v":"Flödet är uppmätt med varmtrådsgivare."}]
[null,"Momentant utsläpp och beräknad förlust (Nm3 CH4/h)"]
[null,"CH4(utsläpp)","ppm",{"$f":"Beräkningar!C260","v":0}]
[null,"Qutsläpp","Nm3/h",{"$f":"Beräkningar!C274","v":0}]
[null,"Momentant utsläpp","Nm3 CH4/h",{"$f":"Beräkningar!C275","v":0}]
[null,"Momentant metanflöde","Nm3 CH4/h",null,null,{"$f":"Beräkningar!E276","v":0}]
[null,"Momentan förlust","%",null,null,{"$f":"Beräkningar!E277","v":{"$error":"#DIV/0!"}}]
[null,"Beräknad kvantifiering av årliga utsläpp (Nm3 CH4/år)"]
[null,{"$f":"_xlfn.SWITCH(Beräkningar!C278,\"p\",\"Utsläppet antas variera relativt gasproduktionen i anläggningen\",\"h\",\"Utsläppet antas vara konstant under årets alla drifttimmar för anläggningen\",\"d\",\"Utsläppet antas vara konstant under delanläggningens/utsläppspunktens drifttimmar\",\"s\",\"Utsläppet antas variera relativt slamproduktionen i anläggningen\")","v":"Utsläppet antas vara konstant under årets alla drifttimmar för anläggningen"}]
[]
[null,"Årligt utsläpp","Nm3 CH4/år",null,null,{"$f":"Beräkningar!E279","v":0}]
[null,"Årligt metanflöde","Nm3 CH4/år",null,null,{"$f":"Beräkningar!E280","v":0}]
[null,"Årlig förlust","%",null,null,{"$f":"Beräkningar!E281","v":{"$error":"#DIV/0!"}}]
[null,"Förslag på åtgärd"]
[null,"Läcksökning och åtgärdande av funna läckor."]

{"sheet":"Ventilation 11","index":14,"n_rows":23,"n_cols":6,"rows_kept":23,"cut":false,"hidden":false,"merged":[[22,1,22,7],[7,1,7,7],[8,1,8,7],[9,1,9,7],[15,1,15,7],[16,1,16,7],[21,1,21,7],[6,1,6,7],[3,1,3,7],[4,1,4,7],[5,1,5,7],[1,1,1,2],[1,3,1,7],[2,1,2,2],[2,3,2,7]]}
[]
[null,"Utsläppsobjekt",null,"Mätpunkt/lokal benämning/tag"]
[null,{"$f":"IF(Val!$B$5=\"Samrötning\",Val!$E22,Val!$F22)","v":0},null,{"$f":"IF(Val!$G22=\"\",\"-\",Val!$G22)","v":"-"}]
[null,"Beskrivning av utsläppsobjekt och mätpunkt"]
[]
[]
[null,"Beskrivning av mätningens genomförande"]
[null,{"$f":"_xlfn.SWITCH(Beräkningar!E285,\"online\",CONCATENATE(\"Metanhalt är uppmätt kontinuerligt med FID under \",TEXT(Beräkningar!F286,0),\" min.\"),\"påsprov\",CONCATENATE(\"Metanhalt är uppmätt med FID i påsprov med provtagningstid \",TEXT(Beräkningar!F286,0),\" min\"))","v":"Metanhalt är uppmätt kontinuerligt med FID under 0 min."}]
[null,{"$f":"_xlfn.SWITCH(Beräkningar!E287,\"Schablon 3000 Nm3/h\",\"Flödet är satt till schablonvärde 3000 Nm3/h.\",\"Schablon 6000 Nm3/h\",\"Flödet är satt till schablonvärde 6000 Nm3/h.\",\"Fläktdata m3/h\",\"Flödet är antaget utifrån fläktdata.\",\"Mätning av flöde\",IF(Beräkningar!C287=\"\",\"Flödet är uppmätt med varmtrådsgivare.\",\"Flödet är uppmätt med pitotrör.\"))","v":"Flödet är uppmätt med varmtrådsgivare."}]
[null,"Momentant utsläpp och beräknad förlust (Nm3 CH4/h)"]
[null,"CH4(utsläpp)","ppm",{"$f":"Beräkningar!C285","v":0}]
[null,"Qutsläpp","Nm3/h",{"$f":"Beräkningar!C299","v":0}]
[null,"Momentant utsläpp","Nm3 CH4/h",{"$f":"Beräkningar!C300","v":0}]
[null,"Momentant metanflöde","Nm3 CH4/h",null,null,{"$f":"Beräkningar!E301","v":0}]
[null,"Momentan förlust","%",null,null,{"$f":"Beräkningar!E302","v":{"$error":"#DIV/0!"}}]
[null,"Beräknad kvantifiering av årliga utsläpp (Nm3 CH4/år)"]
[null,{"$f":"_xlfn.SWITCH(Beräkningar!C303,\"p\",\"Utsläppet antas variera relativt gasproduktionen i anläggningen\",\"h\",\"Utsläppet antas vara konstant under årets alla drifttimmar för anläggningen\",\"d\",\"Utsläppet antas vara konstant under delanläggningens/utsläppspunktens drifttimmar\",\"s\",\"Utsläppet antas variera relativt slamproduktionen i anläggningen\")","v":"Utsläppet antas vara konstant under årets alla drifttimmar för anläggningen"}]
[]
[null,"Årligt utsläpp","Nm3 CH4/år",null,null,{"$f":"Beräkningar!E304","v":0}]
[null,"Årligt metanflöde","Nm3 CH4/år",null,null,{"$f":"Beräkningar!E305","v":0}]
[null,"Årlig förlust","%",null,null,{"$f":"Beräkningar!E306","v":{"$error":"#DIV/0!"}}]
[null,"Förslag på åtgärd"]
[null,"Läcksökning och åtgärdande av funna läckor."]

{"sheet":"Ventilation 12","index":15,"n_rows":23,"n_cols":6,"rows_kept":23,"cut":false,"hidden":false,"merged":[[22,1,22,7],[7,1,7,7],[8,1,8,7],[9,1,9,7],[15,1,15,7],[16,1,16,7],[21,1,21,7],[6,1,6,7],[3,1,3,7],[4,1,4,7],[5,1,5,7],[1,1,1,2],[1,3,1,7],[2,1,2,2],[2,3,2,7]]}
[]
[null,"Utsläppsobjekt",null,"Mätpunkt/lokal benämning/tag"]
[null,{"$f":"IF(Val!$B$5=\"Samrötning\",Val!$E23,Val!$F23)","v":0},null,{"$f":"IF(Val!$G23=\"\",\"-\",Val!$G23)","v":"-"}]
[null,"Beskrivning av utsläppsobjekt och mätpunkt"]
[]
[]
[null,"Beskrivning av mätningens genomförande"]
[null,{"$f":"_xlfn.SWITCH(Beräkningar!E310,\"online\",CONCATENATE(\"Metanhalt är uppmätt kontinuerligt med FID under \",TEXT(Beräkningar!F311,0),\" min.\"),\"påsprov\",CONCATENATE(\"Metanhalt är uppmätt med FID i påsprov med provtagningstid \",TEXT(Beräkningar!F311,0),\" min\"))","v":"Metanhalt är uppmätt kontinuerligt med FID under 0 min."}]
[null,{"$f":"_xlfn.SWITCH(Beräkningar!E312,\"Schablon 3000 Nm3/h\",\"Flödet är satt till schablonvärde 3000 Nm3/h.\",\"Schablon 6000 Nm3/h\",\"Flödet är satt till schablonvärde 6000 Nm3/h.\",\"Fläktdata m3/h\",\"Flödet är antaget utifrån fläktdata.\",\"Mätning av flöde\",IF(Beräkningar!C312=\"\",\"Flödet är uppmätt med varmtrådsgivare.\",\"Flödet är uppmätt med pitotrör.\"))","v":"Flödet är uppmätt med varmtrådsgivare."}]
[null,"Momentant utsläpp och beräknad förlust (Nm3 CH4/h)"]
[null,"CH4(utsläpp)","ppm",{"$f":"Beräkningar!C310","v":0}]
[null,"Qutsläpp","Nm3/h",{"$f":"Beräkningar!C324","v":0}]
[null,"Momentant utsläpp","Nm3 CH4/h",{"$f":"Beräkningar!C325","v":0}]
[null,"Momentant metanflöde","Nm3 CH4/h",null,null,{"$f":"Beräkningar!E326","v":0}]
[null,"Momentan förlust","%",null,null,{"$f":"Beräkningar!E327","v":{"$error":"#DIV/0!"}}]
[null,"Beräknad kvantifiering av årliga utsläpp (Nm3 CH4/år)"]
[null,{"$f":"_xlfn.SWITCH(Beräkningar!C328,\"p\",\"Utsläppet antas variera relativt gasproduktionen i anläggningen\",\"h\",\"Utsläppet antas vara konstant under årets alla drifttimmar för anläggningen\",\"d\",\"Utsläppet antas vara konstant under delanläggningens/utsläppspunktens drifttimmar\",\"s\",\"Utsläppet antas variera relativt slamproduktionen i anläggningen\")","v":"Utsläppet antas vara konstant under årets alla drifttimmar för anläggningen"}]
[]
[null,"Årligt utsläpp","Nm3 CH4/år",null,null,{"$f":"Beräkningar!E329","v":0}]
[null,"Årligt metanflöde","Nm3 CH4/år",null,null,{"$f":"Beräkningar!E330","v":0}]
[null,"Årlig förlust","%",null,null,{"$f":"Beräkningar!E331","v":{"$error":"#DIV/0!"}}]
[null,"Förslag på åtgärd"]
[null,"Läcksökning och åtgärdande av funna läckor."]

{"sheet":"Utsläpp år 1","index":16,"n_rows":22,"n_cols":6,"rows_kept":22,"cut":false,"hidden":false,"merged":[[22,1,22,7],[7,1,7,7],[8,1,8,7],[9,1,9,7],[15,1,15,7],[16,1,16,7],[21,1,21,7],[6,1,6,7],[3,1,3,7],[4,1,4,7],[5,1,5,7],[1,1,1,2],[1,3,1,7],[2,1,2,2],[2,3,2,7]]}
[]
[null,"Utsläppsobjekt",null,"Mätpunkt/lokal benämning/tag"]
[null,{"$f":"IF(Val!$B$5=\"Samrötning\",Val!$E24,Val!$F24)","v":0},null,{"$f":"IF(Val!$G24=\"\",\"-\",Val!$G24)","v":"-"}]
[null,"Beskrivning av utsläppsobjekt och mätpunkt"]
[]
[]
[null,"Beskrivning av mätningens genomförande"]
[]
[]
[null,"Momentant utsläpp och beräknad förlust (Nm3 CH4/h)"]
[null,{"$f":"IF(Beräkningar!C336=\"p\",\"Utsläppet antas variera relativt produktionen i anläggningen\",IF(Beräkningar!C336=\"h\",\"Utsläppet antas vara konstant över årets alla drifttimmar\",\"Görs ej\"))","v":"Utsläppet antas vara konstant över årets alla drifttimmar"}]
[]
[null,"Momentant utsläpp","Nm3 CH4/h",null,null,{"$f":"Beräkningar!E337","v":{"$error":"#DIV/0!"}}]
[null,"Momentant metanflöde","Nm3 CH4/h",null,null,{"$f":"Beräkningar!E338","v":0}]
[null,"Momentan förlust","%",null,null,{"$f":"Beräkningar!E339","v":{"$error":"#DIV/0!"}}]
[null,"Beräknad kvantifiering av årliga utsläpp (Nm3 CH4/år)"]
[]
[]
[null,"Årligt utsläpp","Nm3 CH4/år",null,null,{"$f":"Beräkningar!E341","v":0}]
[null,"Årligt metanflöde","Nm3 CH4/år",null,null,{"$f":"Beräkningar!E342","v":0}]
[null,"Årlig förlust","%",null,null,{"$f":"Beräkningar!E343","v":{"$error":"#DIV/0!"}}]
[null,"Förslag på åtgärd"]

{"sheet":"Utsläpp år 2","index":17,"n_rows":22,"n_cols":6,"rows_kept":22,"cut":false,"hidden":false,"merged":[[22,1,22,7],[7,1,7,7],[8,1,8,7],[9,1,9,7],[15,1,15,7],[16,1,16,7],[21,1,21,7],[6,1,6,7],[3,1,3,7],[4,1,4,7],[5,1,5,7],[1,1,1,2],[1,3,1,7],[2,1,2,2],[2,3,2,7]]}
[]
[null,"Utsläppsobjekt",null,"Mätpunkt/lokal benämning/tag"]
[null,{"$f":"IF(Val!$B$5=\"Samrötning\",Val!$E25,Val!$F25)","v":0},null,{"$f":"IF(Val!$G25=\"\",\"-\",Val!$G25)","v":"-"}]
[null,"Beskrivning av utsläppsobjekt och mätpunkt"]
[]
[]
[null,"Beskrivning av mätningens genomförande"]
[]
[]
[null,"Momentant utsläpp och beräknad förlust (Nm3 CH4/h)"]
[null,{"$f":"IF(Beräkningar!C348=\"p\",\"Utsläppet antas variera relativt produktionen i anläggningen\",IF(Beräkningar!C348=\"h\",\"Utsläppet antas vara konstant över årets alla drifttimmar\",\"Görs ej\"))","v":"Utsläppet antas vara konstant över årets alla drifttimmar"}]
[]
[null,"Momentant utsläpp","Nm3 CH4/h",null,null,{"$f":"Beräkningar!E349","v":{"$error":"#DIV/0!"}}]
[null,"Momentant metanflöde","Nm3 CH4/h",null,null,{"$f":"Beräkningar!E350","v":0}]
[null,"Momentan förlust","%",null,null,{"$f":"Beräkningar!E351","v":{"$error":"#DIV/0!"}}]
[null,"Beräknad kvantifiering av årliga utsläpp (Nm3 CH4/år)"]
[]
[]
[null,"Årligt utsläpp","Nm3 CH4/år",null,null,{"$f":"Beräkningar!E353","v":0}]
[null,"Årligt metanflöde","Nm3 CH4/år",null,null,{"$f":"Beräkningar!E354","v":0}]
[null,"Årlig förlust","%",null,null,{"$f":"Beräkningar!E355","v":{"$error":"#DIV/0!"}}]
[null,"Förslag på åtgärd"]

{"sheet":"Utsläpp h 1","index":18,"n_rows":22,"n_cols":6,"rows_kept":22,"cut":false,"hidden":false,"merged":[[22,1,22,7],[7,1,7,7],[8,1,8,7],[9,1,9,7],[15,1,15,7],[16,1,16,7],[21,1,21,7],[6,1,6,7],[3,1,3,7],[4,1,4,7],[5,1,5,7],[1,1,1,2],[1,3,1,7],[2,1,2,2],[2,3,2,7]]}
[]
[null,"Utsläppsobjekt",null,"Mätpunkt/lokal benämning/tag"]
[null,{"$f":"IF(Val!$B$5=\"Samrötning\",Val!$E26,Val!$F26)","v":0},null,{"$f":"IF(Val!$G26=\"\",\"-\",Val!$G26)","v":"-"}]
[null,"Beskrivning av utsläppsobjekt och mätpunkt"]
[]
[]
[null,"Beskrivning av mätningens genomförande"]
[]
[]
[null,"Momentant utsläpp och beräknad förlust (Nm3 CH4/h)"]
[]
[]
[null,"Momentant utsläpp","Nm3 CH4/h",{"$f":"Beräkningar!C361","v":0}]
[null,"Momentant metanflöde","Nm3 CH4/h",null,null,{"$f":"Beräkningar!E362","v":0}]
[null,"Momentan förlust","%",null,null,{"$f":"Beräkningar!E363","v":{"$error":"#DIV/0!"}}]
[null,"Beräknad kvantifiering av årliga utsläpp (Nm3 CH4/år)"]
[null,{"$f":"_xlfn.SWITCH(Beräkningar!C364,\"p\",\"Utsläppet antas variera relativt gasproduktionen i anläggningen\",\"h\",\"Utsläppet antas vara konstant under årets alla drifttimmar för anläggningen\",\"d\",\"Utsläppet antas vara konstant under delanläggningens/utsläppspunktens drifttimmar\",\"s\",\"Utsläppet antas variera relativt slamproduktionen i anläggningen\")","v":"Utsläppet antas vara konstant under årets alla drifttimmar för anläggningen"}]
[]
[null,"Årligt utsläpp","Nm3 CH4/år",null,null,{"$f":"Beräkningar!E365","v":0}]
[null,"Årligt metanflöde","Nm3 CH4/år",null,null,{"$f":"Beräkningar!E366","v":0}]
[null,"Årlig förlust","%",null,null,{"$f":"Beräkningar!E367","v":{"$error":"#DIV/0!"}}]
[null,"Förslag på åtgärd"]

{"sheet":"Utsläpp h 2","index":19,"n_rows":22,"n_cols":6,"rows_kept":22,"cut":false,"hidden":false,"merged":[[22,1,22,7],[7,1,7,7],[8,1,8,7],[9,1,9,7],[15,1,15,7],[16,1,16,7],[21,1,21,7],[6,1,6,7],[3,1,3,7],[4,1,4,7],[5,1,5,7],[1,1,1,2],[1,3,1,7],[2,1,2,2],[2,3,2,7]]}
[]
[null,"Utsläppsobjekt",null,"Mätpunkt/lokal benämning/tag"]
[null,{"$f":"IF(Val!$B$5=\"Samrötning\",Val!$E27,Val!$F27)","v":0},null,{"$f":"IF(Val!$G27=\"\",\"-\",Val!$G27)","v":"-"}]
[null,"Beskrivning av utsläppsobjekt och mätpunkt"]
[]
[]
[null,"Beskrivning av mätningens genomförande"]
[]
[]
[null,"Momentant utsläpp och beräknad förlust (Nm3 CH4/h)"]
[]
[]
[null,"Momentant utsläpp","Nm3 CH4/h",{"$f":"Beräkningar!C373","v":0}]
[null,"Momentant metanflöde","Nm3 CH4/h",null,null,{"$f":"Beräkningar!E374","v":0}]
[null,"Momentan förlust","%",null,null,{"$f":"Beräkningar!E375","v":{"$error":"#DIV/0!"}}]
[null,"Beräknad kvantifiering av årliga utsläpp (Nm3 CH4/år)"]
[null,{"$f":"_xlfn.SWITCH(Beräkningar!C376,\"p\",\"Utsläppet antas variera relativt gasproduktionen i anläggningen\",\"h\",\"Utsläppet antas vara konstant under årets alla drifttimmar för anläggningen\",\"d\",\"Utsläppet antas vara konstant under delanläggningens/utsläppspunktens drifttimmar\",\"s\",\"Utsläppet antas variera relativt slamproduktionen i anläggningen\")","v":"Utsläppet antas vara konstant under årets alla drifttimmar för anläggningen"}]
[]
[null,"Årligt utsläpp","Nm3 CH4/år",null,null,{"$f":"Beräkningar!E377","v":0}]
[null,"Årligt metanflöde","Nm3 CH4/år",null,null,{"$f":"Beräkningar!E378","v":0}]
[null,"Årlig förlust","%",null,null,{"$f":"Beräkningar!E379","v":{"$error":"#DIV/0!"}}]
[null,"Förslag på åtgärd"]

{"sheet":"Utsläpp h 3","index":20,"n_rows":22,"n_cols":6,"rows_kept":22,"cut":false,"hidden":false,"merged":[[22,1,22,7],[7,1,7,7],[8,1,8,7],[9,1,9,7],[15,1,15,7],[16,1,16,7],[21,1,21,7],[6,1,6,7],[3,1,3,7],[4,1,4,7],[5,1,5,7],[1,1,1,2],[1,3,1,7],[2,1,2,2],[2,3,2,7]]}
[]
[null,"Utsläppsobjekt",null,"Mätpunkt/lokal benämning/tag"]
[null,{"$f":"IF(Val!$B$5=\"Samrötning\",Val!$E28,Val!$F28)","v":0},null,{"$f":"IF(Val!$G28=\"\",\"-\",Val!$G28)","v":"-"}]
[null,"Beskrivning av utsläppsobjekt och mätpunkt"]
[]
[]
[null,"Beskrivning av mätningens genomförande"]
[]
[]
[null,"Momentant utsläpp och beräknad förlust (Nm3 CH4/h)"]
[]
[]
[null,"Momentant utsläpp","Nm3 CH4/h",{"$f":"Beräkningar!C385","v":0}]
[null,"Momentant metanflöde","Nm3 CH4/h",null,null,{"$f":"Beräkningar!E386","v":0}]
[null,"Momentan förlust","%",null,null,{"$f":"Beräkningar!E387","v":{"$error":"#DIV/0!"}}]
[null,"Beräknad kvantifiering av årliga utsläpp (Nm3 CH4/år)"]
[null,{"$f":"_xlfn.SWITCH(Beräkningar!C388,\"p\",\"Utsläppet antas variera relativt gasproduktionen i anläggningen\",\"h\",\"Utsläppet antas vara konstant under årets alla drifttimmar för anläggningen\",\"d\",\"Utsläppet antas vara konstant under delanläggningens/utsläppspunktens drifttimmar\",\"s\",\"Utsläppet antas variera relativt slamproduktionen i anläggningen\")","v":"Utsläppet antas vara konstant under årets alla drifttimmar för anläggningen"}]
[]
[null,"Årligt utsläpp","Nm3 CH4/år",null,null,{"$f":"Beräkningar!E389","v":0}]
[null,"Årligt metanflöde","Nm3 CH4/år",null,null,{"$f":"Beräkningar!E390","v":0}]
[null,"Årlig förlust","%",null,null,{"$f":"Beräkningar!E391","v":{"$error":"#DIV/0!"}}]
[null,"Förslag på åtgärd"]

{"sheet":"Utsläpp h 4","index":21,"n_rows":22,"n_cols":6,"rows_kept":22,"cut":false,"hidden":false,"merged":[[22,1,22,7],[7,1,7,7],[8,1,8,7],[9,1,9,7],[15,1,15,7],[16,1,16,7],[21,1,21,7],[6,1,6,7],[3,1,3,7],[4,1,4,7],[5,1,5,7],[1,1,1,2],[1,3,1,7],[2,1,2,2],[2,3,2,7]]}
[]
[null,"Utsläppsobjekt",null,"Mätpunkt/lokal benämning/tag"]
[null,{"$f":"IF(Val!$B$5=\"Samrötning\",Val!$E29,Val!$F29)","v":0},null,{"$f":"IF(Val!$G29=\"\",\"-\",Val!$G29)","v":"-"}]
[null,"Beskrivning av utsläppsobjekt och mätpunkt"]
[]
[]
[null,"Beskrivning av mätningens genomförande"]
[]
[]
[null,"Momentant utsläpp och beräknad förlust (Nm3 CH4/h)"]
[]
[]
[null,"Momentant utsläpp","Nm3 CH4/h",{"$f":"Beräkningar!C397","v":0}]
[null,"Momentant metanflöde","Nm3 CH4/h",null,null,{"$f":"Beräkningar!E398","v":0}]
[null,"Momentan förlust","%",null,null,{"$f":"Beräkningar!E399","v":{"$error":"#DIV/0!"}}]
[null,"Beräknad kvantifiering av årliga utsläpp (Nm3 CH4/år)"]
[null,{"$f":"_xlfn.SWITCH(Beräkningar!C400,\"p\",\"Utsläppet antas variera relativt gasproduktionen i anläggningen\",\"h\",\"Utsläppet antas vara konstant under årets alla drifttimmar för anläggningen\",\"d\",\"Utsläppet antas vara konstant under delanläggningens/utsläppspunktens drifttimmar\",\"s\",\"Utsläppet antas variera relativt slamproduktionen i anläggningen\")","v":"Utsläppet antas vara konstant under årets alla drifttimmar för anläggningen"}]
[]
[null,"Årligt utsläpp","Nm3 CH4/år",null,null,{"$f":"Beräkningar!E401","v":0}]
[null,"Årligt metanflöde","Nm3 CH4/år",null,null,{"$f":"Beräkningar!E402","v":0}]
[null,"Årlig förlust","%",null,null,{"$f":"Beräkningar!E403","v":{"$error":"#DIV/0!"}}]
[null,"Förslag på åtgärd"]

{"sheet":"Utsläpp h 5","index":22,"n_rows":22,"n_cols":6,"rows_kept":22,"cut":false,"hidden":false,"merged":[[22,1,22,7],[7,1,7,7],[8,1,8,7],[9,1,9,7],[15,1,15,7],[16,1,16,7],[21,1,21,7],[6,1,6,7],[3,1,3,7],[4,1,4,7],[5,1,5,7],[1,1,1,2],[1,3,1,7],[2,1,2,2],[2,3,2,7]]}
[]
[null,"Utsläppsobjekt",null,"Mätpunkt/lokal benämning/tag"]
[null,{"$f":"IF(Val!$B$5=\"Samrötning\",Val!$E30,Val!$F30)","v":0},null,{"$f":"IF(Val!$G30=\"\",\"-\",Val!$G30)","v":"-"}]
[null,"Beskrivning av utsläppsobjekt och mätpunkt"]
[]
[]
[null,"Beskrivning av mätningens genomförande"]
[]
[]
[null,"Momentant utsläpp och beräknad förlust (Nm3 CH4/h)"]
[]
[]
[null,"Momentant utsläpp","Nm3 CH4/h",{"$f":"Beräkningar!C409","v":0}]
[null,"Momentant metanflöde","Nm3 CH4/h",null,null,{"$f":"Beräkningar!E410","v":0}]
[null,"Momentan förlust","%",null,null,{"$f":"Beräkningar!E411","v":{"$error":"#DIV/0!"}}]
[null,"Beräknad kvantifiering av årliga utsläpp (Nm3 CH4/år)"]
[null,{"$f":"_xlfn.SWITCH(Beräkningar!C412,\"p\",\"Utsläppet antas variera relativt gasproduktionen i anläggningen\",\"h\",\"Utsläppet antas vara konstant under årets alla drifttimmar för anläggningen\",\"d\",\"Utsläppet antas vara konstant under delanläggningens/utsläppspunktens drifttimmar\",\"s\",\"Utsläppet antas variera relativt slamproduktionen i anläggningen\")","v":"Utsläppet antas vara konstant under årets alla drifttimmar för anläggningen"}]
[]
[null,"Årligt utsläpp","Nm3 CH4/år",null,null,{"$f":"Beräkningar!E413","v":0}]
[null,"Årligt metanflöde","Nm3 CH4/år",null,null,{"$f":"Beräkningar!E414","v":0}]
[null,"Årlig förlust","%",null,null,{"$f":"Beräkningar!E415","v":{"$error":"#DIV/0!"}}]
[null,"Förslag på åtgärd"]

{"sheet":"Bilaga","index":23,"n_rows":41,"n_cols":3,"rows_kept":41,"cut":false,"hidden":false,"merged":[]}
[]
[null,"Årsutsläpp"]
[null,"Uppmätta utsläppsmängder gäller vid mätningens genomförande. Fyra olika principer används för att"]
[null,"skala upp de momentant uppmätta utsläppen till att gälla årliga utsläpp:"]
[]
[null,"p","Utsläppet varierar relativt gasproduktionen i anläggningen"]
[]
[null,null,"Den momentana förlusten i procent beräknas vid mätningstillfället relativt"]
[null,null,"den aktuella gasproduktionen i anläggningen. Den momentanta förlusten"]
[null,null,"antas vara samma som den årliga förlusten, i procent."]
[]
[null,"h","Konstant utsläpp under hela anläggningens årliga drifttimmar"]
[]
[null,null,"Det uppmätta momentana utsläppet (Nm3/h) antas gälla under årets alla"]
[null,null,"drifttimmar. Utsläppet antas därmed ej vara beroende av gasproduktionen."]
[]
[null,"d","Konstant utsläpp under delanläggningens årliga drifttimmar"]
[]
[null,null,"Det uppmätta momentana utsläppet (Nm3/h) antas gälla under årets alla"]
[null,null,"drifttimmar för den aktuella delanläggningen/utsläppspunkten. Utsläppet"]
[null,null,"antas därmed ej vara beroende av gasproduktionen."]
[]
[null,"s","Utsläppet varierar relativt slamproduktionen i anläggningen"]
[]
[null,null,"Den momentana förlusten (Nm3/h) vid mätningstillfället relateras till"]
[null,null,"aktuell lagrad slammängd (TS) och skalas upp till årsutsläpp med (del)-"]
[null,null,"anläggningens totala årliga slamproduktion (TS) samt uppehållstid."]
[]
[null,"Mätosäkerhet"]
[null,"Mätosäkerheterna varierar till stor grad mellan olika utsläppspunkter och anläggningar och är bland"]
[null,"annat beroende av raksträckor vid mätpunkterna, flödesprofilen, analysinstrumenten, kalibrergaser,"]
[null,"interferenser med andra ämnen etc. En stor osäkerhetskälla är också den tidsmässiga variationen i "]
[null,"utsläpp i respektive mätpunkt."]
[]
[null,"Hållbarhetskriterier (HBK)"]
[null,"Enligt gällande definitioner så omfattas inte hela biogasanläggningen av den systemgräns som gäller för"]
[null,"beräkning av metanutsläpp för redovisning till hållbarhetskriterierna (HBK). De utsläppspunkter som"]
[null,"anses ingå i HBK systemgräns noteras med \"Ja\" i kolumnen \"HBK\" i protokollet i Bilaga 2a."]
[null,"Värdet på summa utsläpp och metanförlust för dessa utsläppspunkter beräknas nederst i denna kolumn."]
[]
[null,"Specifika kommentarer kring den aktuella mätningen"]

{"sheet":"Protokoll 1","index":24,"n_rows":44,"n_cols":6,"rows_kept":44,"cut":false,"hidden":false,"merged":[[42,1,42,5],[43,1,43,5],[44,1,44,5],[32,0,32,1],[27,1,27,2],[28,1,28,2],[39,1,40,1],[36,2,36,5],[37,2,37,5],[38,2,38,5],[39,2,39,5],[40,2,40,5],[5,2,5,3],[6,2,6,3],[18,1,18,2],[8,0,9,0],[8,1,8,2],[6,4,6,5],[1,2,1,3],[2,2,2,3],[3,2,3,3],[19,1,19,2],[9,1,9,2],[10,1,10,2],[11,1,11,2],[12,1,12,2],[1,4,1,5],[2,4,2,5],[3,4,3,5],[4,4,4,5],[5,4,5,5],[4,0,6,1],[4,2,4,3],[26,1,26,2],[31,4,31,5],[13,1,13,2],[14,1,14,2],[15,1,15,2],[16,1,16,2],[17,1,17,2],[20,1,20,2],[21,1,21,2],[22,1,22,2],[23,1,23,2],[24,1,24,2],[25,1,25,2],[29,1,29,2],[30,0,30,1]]}
[]
["Rapport utgåva",{"$f":"'Sid 1'!$C$3","v":0},"Anläggningsnamn:",null,{"$f":"'Sid 1'!$C$7","v":0}]
["Rapport datum",{"$f":"'Sid 1'!$C$4","v":"00:00:00"},"Anläggningstyp:",null,{"$f":"Val!B5","v":"Samrötning"}]
["Mätning datum",{"$f":"'Sid 1'!$C$21","v":"00:00:00"},"Mätföretag:",null,{"$f":"'Sid 1'!$C$15","v":"00:00:00"}]
["[plats för logotyp mätföretag]",null,"Utförare:",null,{"$f":"'Sid 1'!$C$16","v":0}]
[null,null,"Telefon:",null,{"$f":"'Sid 1'!$C$17","v":0}]
[null,null,"E-post:",null,{"$f":"'Sid 1'!$C$18","v":0}]
[]
["Utsläppsobjekt","Ev. lokal benämning/tag",null,"Skaln.","EgMet kvantifiering ","HBK"]
[null,null,null,null,"CH4 Nm3/år"]
[{"$f":"IF(Val!$B$5=\"Samrötning\",Val!E11,Val!F11)","v":0},{"$f":"IF(Val!$G$11=\"\",\"\",Val!$G$11)","v":""},null,null,{"$f":"IF(Val!$C$11<>\"\",Beräkningar!$C$29,\"\")","v":""},{"$f":"Val!H11","v":""}]
[{"$f":"IF(Val!$B$5=\"Samrötning\",Val!E12,Val!F12)","v":0},{"$f":"IF(Val!$G$12=\"\",\"\",Val!$G$12)","v":""},null,{"$f":"IF(Val!$C12<>\"\",Beräkningar!C53,\"\")","v":""},{"$f":"IF(Val!$C$12<>\"\",Beräkningar!$E$54,\"\")","v":""},{"$f":"Val!H12","v":""}]
[{"$f":"IF(Val!$B$5=\"Samrötning\",Val!E13,Val!F13)","v":0},{"$f":"IF(Val!$G$13=\"\",\"\",Val!$G$13)","v":""},null,{"$f":"IF(Val!$C13<>\"\",Beräkningar!C78,\"\")","v":""},{"$f":"IF(Val!$C$13<>\"\",Beräkningar!$E$79,\"\")","v":""},{"$f":"Val!H13","v":""}]
[{"$f":"IF(Val!$B$5=\"Samrötning\",Val!E14,Val!F14)","v":0},{"$f":"IF(Val!$G$14=\"\",\"\",Val!$G$14)","v":""},null,{"$f":"IF(Val!$C14<>\"\",Beräkningar!C103,\"\")","v":""},{"$f":"IF(Val!$C$14<>\"\",Beräkningar!$E$104,\"\")","v":""},{"$f":"Val!H14","v":""}]
[{"$f":"IF(Val!$B$5=\"Samrötning\",Val!E15,Val!F15)","v":0},{"$f":"IF(Val!$G$15=\"\",\"\",Val!$G$15)","v":""},null,{"$f":"IF(Val!$C15<>\"\",Beräkningar!C128,\"\")","v":""},{"$f":"IF(Val!$C$15<>\"\",Beräkningar!$E$129,\"\")","v":""},{"$f":"Val!H15","v":""}]
[{"$f":"IF(Val!$B$5=\"Samrötning\",Val!E16,Val!F16)","v":0},{"$f":"IF(Val!$G$16=\"\",\"\",Val!$G$16)","v":""},null,{"$f":"IF(Val!$C16<>\"\",Beräkningar!C153,\"\")","v":""},{"$f":"IF(Val!$C$16<>\"\",Beräkningar!$E$154,\"\")","v":""},{"$f":"Val!H16","v":""}]
[{"$f":"IF(Val!$B$5=\"Samrötning\",Val!E17,Val!F17)","v":0},{"$f":"IF(Val!$G$17=\"\",\"\",Val!$G$17)","v":""},null,{"$f":"IF(Val!$C17<>\"\",Beräkningar!C178,\"\")","v":""},{"$f":"IF(Val!$C$17<>\"\",Beräkningar!$E$179,\"\")","v":""},{"$f":"Val!H17","v":""}]
[{"$f":"IF(Val!$B$5=\"Samrötning\",Val!E18,Val!F18)","v":0},{"$f":"IF(Val!$G$18=\"\",\"\",Val!$G$18)","v":""},null,{"$f":"IF(Val!$C18<>\"\",Beräkningar!C203,\"\")","v":""},{"$f":"IF(Val!$C$18<>\"\",Beräkningar!$E$204,\"\")","v":""},{"$f":"Val!H18","v":""}]
[{"$f":"IF(Val!$B$5=\"Samrötning\",Val!E19,Val!F19)","v":0},{"$f":"IF(Val!$G$19=\"\",\"\",Val!$G$19)","v":""},null,{"$f":"IF(Val!$C19<>\"\",Beräkningar!C228,\"\")","v":""},{"$f":"IF(Val!$C$19<>\"\",Beräkningar!$E$229,\"\")","v":""},{"$f":"Val!H19","v":""}]
[{"$f":"IF(Val!$B$5=\"Samrötning\",Val!E20,Val!F20)","v":0},{"$f":"IF(Val!G20=\"\",\"\",Val!G20)","v":""},null,{"$f":"IF(Val!$C20<>\"\",Beräkningar!C253,\"\")","v":""},{"$f":"IF(Val!$C$20<>\"\",Beräkningar!$E$254,\"\")","v":""},{"$f":"Val!H20","v":""}]
[{"$f":"IF(Val!$B$5=\"Samrötning\",Val!E21,Val!F21)","v":0},{"$f":"IF(Val!G21=\"\",\"\",Val!G21)","v":""},null,{"$f":"IF(Val!$C21<>\"\",Beräkningar!C278,\"\")","v":""},{"$f":"IF(Val!$C$21<>\"\",Beräkningar!$E$279,\"\")","v":""},{"$f":"Val!H21","v":""}]
[{"$f":"IF(Val!$B$5=\"Samrötning\",Val!E22,Val!F22)","v":0},{"$f":"IF(Val!G22=\"\",\"\",Val!G22)","v":""},null,{"$f":"IF(Val!$C22<>\"\",Beräkningar!C303,\"\")","v":""},{"$f":"IF(Val!$C$22<>\"\",Beräkningar!$E$304,\"\")","v":""},{"$f":"Val!H22","v":""}]
[{"$f":"IF(Val!$B$5=\"Samrötning\",Val!E23,Val!F23)","v":0},{"$f":"IF(Val!G23=\"\",\"\",Val!G23)","v":""},null,{"$f":"IF(Val!$C23<>\"\",Beräkningar!C328,\"\")","v":""},{"$f":"IF(Val!$C$23<>\"\",Beräkningar!$E$329,\"\")","v":""},{"$f":"Val!H23","v":""}]
[{"$f":"IF(Val!$B$5=\"Samrötning\",Val!E24,Val!F24)","v":0},{"$f":"IF(Val!G24=\"\",\"\",Val!G24)","v":""},null,{"$f":"IF(Val!$C24<>\"\",Beräkningar!C336,\"\")","v":""},{"$f":"IF(Val!$C$24<>\"\",Beräkningar!$E$341,\"\")","v":""},{"$f":"Val!H24","v":""}]
[{"$f":"IF(Val!$B$5=\"Samrötning\",Val!E25,Val!F25)","v":0},{"$f":"IF(Val!G25=\"\",\"\",Val!G25)","v":""},null,{"$f":"IF(Val!$C25<>\"\",Beräkningar!C348,\"\")","v":""},{"$f":"IF(Val!$C$25<>\"\",Beräkningar!$E$353,\"\")","v":""},{"$f":"Val!H25","v":""}]
[{"$f":"IF(Val!$B$5=\"Samrötning\",Val!E26,Val!F26)","v":0},{"$f":"IF(Val!G26=\"\",\"\",Val!G26)","v":""},null,{"$f":"IF(Val!$C26<>\"\",Beräkningar!C364,\"\")","v":""},{"$f":"IF(Val!$C$26<>\"\",Beräkningar!$E$365,\"\")","v":""},{"$f":"Val!H26","v":""}]
[{"$f":"IF(Val!$B$5=\"Samrötning\",Val!E27,Val!F27)","v":0},{"$f":"IF(Val!G27=\"\",\"\",Val!G27)","v":""},null,{"$f":"IF(Val!$C27<>\"\",Beräkningar!C376,\"\")","v":""},{"$f":"IF(Val!$C$27<>\"\",Beräkningar!$E$377,\"\")","v":""},{"$f":"Val!H27","v":""}]
[{"$f":"IF(Val!$B$5=\"Samrötning\",Val!E28,Val!F28)","v":0},{"$f":"IF(Val!G28=\"\",\"\",Val!G28)","v":""},null,{"$f":"IF(Val!$C28<>\"\",Beräkningar!C388,\"\")","v":""},{"$f":"IF(Val!$C$28<>\"\",Beräkningar!$E$389,\"\")","v":""},{"$f":"Val!H28","v":""}]
[{"$f":"IF(Val!$B$5=\"Samrötning\",Val!E29,Val!F29)","v":0},{"$f":"IF(Val!G29=\"\",\"\",Val!G29)","v":""},null,{"$f":"IF(Val!$C29<>\"\",Beräkningar!C400,\"\")","v":""},{"$f":"IF(Val!$C$29<>\"\",Beräkningar!$E$401,\"\")","v":""},{"$f":"Val!H29","v":""}]
[{"$f":"IF(Val!$B$5=\"Samrötning\",Val!E30,Val!F30)","v":0},{"$f":"IF(Val!G30=\"\",\"\",Val!G30)","v":""},null,{"$f":"IF(Val!$C30<>\"\",Beräkningar!C412,\"\")","v":""},{"$f":"IF(Val!$C$30<>\"\",Beräkningar!$E$413,\"\")","v":""},{"$f":"Val!H30","v":""}]
["Summa utsläpp CH4 (Nm3/år)",null,null,null,{"$f":"SUM(E11:E30)","v":0},{"$f":"Beräkningar!G17","v":0}]
["Totalt metanflöde i anläggning (Nm3/år)",null,null,null,{"$f":"Beräkningar!E11","v":0}]
["Metanförlust (%)",null,null,null,{"$f":"(E31/E32)*100","v":{"$error":"#DIV/0!"}},{"$f":"Beräkningar!G18","v":{"$error":"#DIV/0!"}}]
[]
[null,"Läcksökning"]
[null,"Bolagets rutiner för läcksökning, samt utförandet enligt rutin, har granskats."]
[null,"Finns rutin?",{"$f":"'Sid 1'!C31","v":0}]
[null,"Intervall",{"$f":"'Sid 1'!C32","v":0}]
[null,"Utrustning",{"$f":"'Sid 1'!C33","v":0}]
[null,"Utfört enligt rutin?",{"$f":"'Sid 1'!C34","v":0}]
[null,null,{"$f":"IF('Sid 1'!C35=\"\",\"\",'Sid 1'!C35)","v":""}]
[]
[null,"Härmed intygas att kvantifiering enligt föreskrivna riktlinjer i EgMet har ägt rum"]
[null,{"$f":"'Sid 1'!C16","v":0}]

{"sheet":"Protokoll 2","index":25,"n_rows":39,"n_cols":5,"rows_kept":39,"cut":false,"hidden":false,"merged":[[1,2,1,3],[1,4,1,5],[2,2,2,3],[2,4,2,5],[3,2,3,3],[3,4,3,5],[10,1,10,2],[10,3,10,5],[4,0,6,1],[4,2,4,3],[4,4,4,5],[5,2,5,3],[5,4,5,5],[6,2,6,3],[6,4,6,5],[8,0,9,0],[8,1,8,2],[8,3,8,5],[9,1,9,2],[9,3,9,5],[11,1,11,2],[11,3,11,5],[12,1,12,2],[12,3,12,5],[13,1,13,2],[13,3,13,5],[14,1,14,2],[14,3,14,5],[15,1,15,2],[15,3,15,5],[16,1,16,2],[16,3,16,5],[17,1,17,2],[17,3,17,5],[18,1,18,2],[18,3,18,5],[19,1,19,2],[19,3,19,5],[20,1,20,2],[20,3,20,5],[21,1,21,2],[21,3,21,5],[22,1,22,2],[22,3,22,5],[23,1,23,2],[23,3,23,5],[24,1,24,2],[24,3,24,5],[25,1,25,2],[25,3,25,5],[26,1,26,2],[26,3,26,5],[27,1,27,2],[27,3,27,5],[28,1,28,2],[28,3,28,5],[35,1,35,5],[36,1,36,5],[37,1,37,5],[29,1,29,2],[29,3,29,5],[30,0,30,1],[32,0,32,1],[33,0,33,1]]}
[]
["Rapport utgåva",{"$f":"'Sid 1'!$C$3","v":0},"Anläggningsnamn:",null,{"$f":"'Sid 1'!$C$7","v":0}]
["Rapport datum",{"$f":"'Sid 1'!$C$4","v":"00:00:00"},"Anläggningstyp:",null,{"$f":"Val!B5","v":"Samrötning"}]
["Mätning datum",{"$f":"'Sid 1'!$C$21","v":"00:00:00"},"Huvudman/ägare:",null,{"$f":"'Sid 1'!C9","v":"00:00:00"}]
["[plats för logotyp huvudman/ägare]",null,"Kontaktperson:",null,{"$f":"'Sid 1'!$C$10","v":0}]
[null,null,"Telefon:",null,{"$f":"'Sid 1'!$C$11","v":0}]
[null,null,"E-post:",null,{"$f":"'Sid 1'!$C$12","v":0}]
[]
["Utsläppsobjekt","Ev. lokal benämning/tag",null,"Planerad åtgärd"]
[]
[{"$f":"IF(Val!$B$5=\"Samrötning\",Val!E11,Val!F11)","v":0},{"$f":"IF(Val!$G$11=\"\",\"\",Val!$G$11)","v":""}]
[{"$f":"IF(Val!$B$5=\"Samrötning\",Val!E12,Val!F12)","v":0},{"$f":"IF(Val!$G$12=\"\",\"\",Val!$G$12)","v":""}]
[{"$f":"IF(Val!$B$5=\"Samrötning\",Val!E13,Val!F13)","v":0},{"$f":"IF(Val!$G$13=\"\",\"\",Val!$G$13)","v":""}]
[{"$f":"IF(Val!$B$5=\"Samrötning\",Val!E14,Val!F14)","v":0},{"$f":"IF(Val!$G$14=\"\",\"\",Val!$G$14)","v":""}]
[{"$f":"IF(Val!$B$5=\"Samrötning\",Val!E15,Val!F15)","v":0},{"$f":"IF(Val!$G$15=\"\",\"\",Val!$G$15)","v":""}]
[{"$f":"IF(Val!$B$5=\"Samrötning\",Val!E16,Val!F16)","v":0},{"$f":"IF(Val!$G$16=\"\",\"\",Val!$G$16)","v":""}]
[{"$f":"IF(Val!$B$5=\"Samrötning\",Val!E17,Val!F17)","v":0},{"$f":"IF(Val!$G$17=\"\",\"\",Val!$G$17)","v":""}]
[{"$f":"IF(Val!$B$5=\"Samrötning\",Val!E18,Val!F18)","v":0},{"$f":"IF(Val!$G$18=\"\",\"\",Val!$G$18)","v":""}]
[{"$f":"IF(Val!$B$5=\"Samrötning\",Val!E19,Val!F19)","v":0},{"$f":"IF(Val!$G$19=\"\",\"\",Val!$G$19)","v":""}]
[{"$f":"IF(Val!$B$5=\"Samrötning\",Val!E20,Val!F20)","v":0},{"$f":"IF(Val!$G$20=\"\",\"\",Val!$G$20)","v":""}]
[{"$f":"IF(Val!$B$5=\"Samrötning\",Val!E21,Val!F21)","v":0},{"$f":"IF(Val!$G$21=\"\",\"\",Val!$G$21)","v":""}]
[{"$f":"IF(Val!$B$5=\"Samrötning\",Val!E22,Val!F22)","v":0},{"$f":"IF(Val!$G$22=\"\",\"\",Val!$G$22)","v":""}]
[{"$f":"IF(Val!$B$5=\"Samrötning\",Val!E23,Val!F23)","v":0},{"$f":"IF(Val!$G$23=\"\",\"\",Val!$G$23)","v":""}]
[{"$f":"IF(Val!$B$5=\"Samrötning\",Val!E24,Val!F24)","v":0},{"$f":"IF(Val!$G$24=\"\",\"\",Val!$G$24)","v":""}]
[{"$f":"IF(Val!$B$5=\"Samrötning\",Val!E25,Val!F25)","v":0},{"$f":"IF(Val!$G$25=\"\",\"\",Val!$G$25)","v":""}]
[{"$f":"IF(Val!$B$5=\"Samrötning\",Val!E26,Val!F26)","v":0},{"$f":"IF(Val!$G$26=\"\",\"\",Val!$G$26)","v":""}]
[{"$f":"IF(Val!$B$5=\"Samrötning\",Val!E27,Val!F27)","v":0},{"$f":"IF(Val!$G$27=\"\",\"\",Val!$G$27)","v":""}]
[{"$f":"IF(Val!$B$5=\"Samrötning\",Val!E28,Val!F28)","v":0},{"$f":"IF(Val!$G$28=\"\",\"\",Val!$G$28)","v":""}]
[{"$f":"IF(Val!$B$5=\"Samrötning\",Val!E29,Val!F29)","v":0},{"$f":"IF(Val!$G$29=\"\",\"\",Val!$G$29)","v":""}]
[{"$f":"IF(Val!$B$5=\"Samrötning\",Val!E30,Val!F30)","v":0},{"$f":"IF(Val!$G$30=\"\",\"\",Val!$G$30)","v":""}]
["Summa utsläpp CH4 (Nm3/år)",null,null,null,{"$f":"'Protokoll 1'!E31","v":0}]
["Totalt metanflöde i anläggning (Nm3/år)",null,null,null,{"$f":"'Protokoll 1'!E32","v":0}]
["Metanförlust (%)",null,null,null,{"$f":"'Protokoll 1'!E33","v":{"$error":"#DIV/0!"}}]
["Mål metanförlust (%)"]
[]
[null,"Härmed intygas att vi tagit del av mätresultaten och planerar för åtgärder enligt ovan"]
[null,{"$f":"'Sid 1'!C10","v":0}]
[]
[null,"Instruktion: Fyll i era åtgärder och mål, sänd sedan Bilaga 2a och 2b till kansli@egmet.se"]